Workbook

Sheet Cover Page
D1: Add company logo
N2: Version 23.4a (for incinerators) - 15/11/2023
N4: Note that there is another version of this template available for co-incinerators
B8: Add photo
N13: Notes:
N14: This template may require adjustments by individual operators to meet specific reporting requirements as defined in the site Permit(s)
B29: Annual Performance Report 2023
B31: Permit EPR/XP3833DK
B33: Ferrybridge 2
B37: enfinium Ferrybridge 2 Ltd
B39: Year: | C39: 2023
B41: Address: | C41: Stranglands Lane, Knottingley, West Yorkshire, WF11 8SQ
B43: Tel: | C43: 01977 636963
B45: Email: | C45: john.warren@enfinium.co.uk
B47: Prepared by: | C47: John Warren | F47: Position: | G47: Environmental Manager
B49: Approved by: | C49: Adam Nicholson | F49: Position: | G49: Plant Manager
B51: Version: | C51: 1
B53: Issue Date: | C53: 31/01/2024

Sheet Contents
A1: =+'Cover Page'!$B$29 -> Annual Performance Report 2023 | E1: =+'Cover Page'!$B$33 -> Ferrybridge 2
A3: Contents | K3: Notes:
A4: Section | B4: Subject | H4: Page | K4: Section references and Page nos. to be inserted
B5: Facility Information | H5: 3 | K5: Sections and Subjects may require adjustment by individual operators to meet specific reporting requirements as defined in the sites Permit(s)
B6: Operational Data | H6: 4
B7: Operational Summary | H7: 6
B8: Performance Form 1 | H8: 8
B9: Energy Form 1 | H9: 10
B10: Permit Compliance | H10: 11
B11: Improvements | H11: 13
B12: Public Liaison | H12: 15
B13: Carbon dioxide and nitrous oxide emissions | H13: 16
B14: Residue Quality | H14: 18
B15: Emissions to Water | H15: 19
B16: Emissions to Air (periodically monitored) | H16: 20
B17: Emissions to Air (continuously monitored) | H17: 22
B18: Oxides of Nitrogen emissions | H18: 23
B19: Sulphur Dioxide emissions | H19: 24
B20: Hydrogen Chloride emissions | H20: 25
B21: Total Organic Carbon emissions | H21: 26
B22: Particulate Matter emissions | H22: 27
B23: Ammonia emissions | H23: 28
B24: Carbon Monoxide emissions | H24: 29
A27: Version Control
A28: Section | B28: Information | H28: Date
A31: Distribution
A32: Copy | B32: Name, Role | H32: No.
A35: This report is required under the Industrial Emissions Directive’s Article 55(2) requirements on reporting and public information on waste incineration plants and co-incineration plants, which require the operator to produce an annual report on the functioning and monitoring of the plant and make it available to the public.

Sheet Facility Info
A1: =+'Cover Page'!$B$29 -> Annual Performance Report 2023 | E1: =+'Cover Page'!$B$33 -> Ferrybridge 2
A3: Plant Description and Design | K3: Notes:
A5: Ferrybridge 2 is designed for the disposal of waste with energy recovery in an incineration plant and is permitted under Section 5.1 A(1)(b) the incineration of non-hazardous waste in an incineration plant with a capacity exceeding 3 tonnes per hour. The installation is located on land to the north of Ferrybridge 1 site, close to the A1(M). It lies approximately 1km northwest of the village of Ferrybridge, 2km northwest of Knottingley, 1.8km southeast of Ferry Fryston, and 3km northeast of Pontefract, at grid reference SE 472 254. The facility has a throughput limit of 725,000 tonnes per year of waste which can include refuse derived fuel, waste wood and commercial and industrial waste. The facility consists of two combustion lines and generates approximately 80 MWe of electricity, of which approximately 73 MWe is exported. Moving grate technology is used for burning the waste material. The furnace design ensures that a temperature of at least 850 degrees celcius for a period of at least two seconds is achieved in the combustion chamber. Auxillary burners firing a low sulphur gas oil are automatically triggered by online process monitoring equipment are used to ensure the temperature does not fall below 850 degrees celcius. Hot gases from the furnace pass in a boiler. Steam raised in the boiler is passed to a turbine to generate electricity for export to the National Grid. | K5: Include summary of plant design, design capacity, no. of combustion lines, electrical and heat capacity and any other general information that descibes the facility, its location and purpose
A18: Summary of Operational Processes and Procedures
A20: Key processes include waste reception, waste storage, water use, drainage, flue gas and air supply systems, boilers, treatment of exhaust gases, treatment and storage of residues and water recycling, stacks, devices and systems for controlling incineration operations, recording and monitoring conditions. The site has an Environmental Management System accredited to ISO 14001. Health and Safety management system covering all aspects of health and safety comprising policy, procedures, risk assessments, Key Performance Indicators (KPIs) and objectives reviewed periodically. Accreditation to ISO 45001:2018 was obtained in April 2020. Maintenance across the facilities is broken down in to reactive (breakdown) maintenance, and planned preventive maintenance. Preventive maintenance is conducted via the philosophy of Risk Based Inspections to ensure the safety of personnel and availability of the plant is cost effectively maintained. | K20: Include summary of key processes and procedures such as (but not limited to); waste reception, control rooms, grate, bed and bolier, energy & heat generation, cooling systems, residue management, emission controls, health and safety systems, maintenance

Sheet Operational Data
A1: =+'Cover Page'!$B$29 -> Annual Performance Report 2023 | E1: =+'Cover Page'!$B$33 -> Ferrybridge 2
A3: Operational Data
A4: Plant Size | B4: 725000 | D4: tonnes pa | E4: 80 | F4: MWth | G4: 73 | H4: MWe | J4: Notes:
A5: No. of combustion lines | B5: 2 | D5: No. of Turbines: | F5: 1 | J5: * - RDF to include SRF
J6: ** - Combusted tonnage = tonnes delivered in period + (tonnes in bunker at start of period – tonnes in bunker at end of period), or equivalent calculation depending on plant type
A7: Waste types received | B7: Unit | C7: Q1 | D7: Q2 | E7: Q3 | F7: Q4 | G7: Year Total | H7: %
A8: Refuse Derived Fuel * - H'hold/LA | C8: 168981.24 | D8: 161298.82 | E8: 149578 | F8: 169165.94 | G8: =SUM(C8:F8) -> 649024 | H8: =IF(G8>0,G8/$G$9,"-") -> 1
A9: Total waste received | C9: =SUM(C8:C8) -> 168981.24 | D9: =SUM(D8:D8) -> 161298.82 | E9: =SUM(E8:E8) -> 149578 | F9: =SUM(F8:F8) -> 169165.94 | G9: =SUM(C9:F9) -> 649024
A10: Total waste combusted ** | C10: 164955.24 | D10: 164167.82 | E10: 153645 | F10: 172642.94 | G10: =SUM(C10:F10) -> 655411
J11: Password for protected cells A password has been set to prevent accidental editing of cells with formulae. If you still need to make an edit for some reason then the password = 1234
A12: Energy Usage / Export | B12: Unit | C12: Q1 | D12: Q2 | E12: Q3 | F12: Q4 | G12: Year Total | H12: KWh/te
A13: Power Generated | B13: MWh | C13: 173028.79 | D13: 174911.94 | E13: 155949.09 | F13: 171544.72 | G13: =SUM(C13:F13) -> 675434.54 | H13: =IF(G13>0,G13*1000/$G$10,"-") -> 1030.55112
A14: Power Exported | C14: 158152.2 | D14: 157739.6 | E14: 141771.2 | F14: 156550.6 | G14: =SUM(C14:F14) -> 614213.6 | H14: =IF(G14>0,G14*1000/$G$10,"-") -> 937.1426479
A15: Power Used on site | C15: =C13-C14 -> 14876.59 | D15: =D13-D14 -> 17172.34 | E15: 14177.89 | F15: 14994.12 | G15: =SUM(C15:F15) -> 61220.94 | H15: =IF(G15>0,G15*1000/$G$10,"-") -> 93.40847194
A16: Power Imported | C16: 0 | D16: 0 | E16: 143.7185 | F16: 143.52 | G16: 287.2385 | H16: =IF(G16>0,G16*1000/$G$10,"-") -> 0.4382570631
A17: Parasitic Load | B17: % | C17: =IF(C13>0,1-C14/(C13+C16),"-") -> 0.08597754166 | D17: =IF(D13>0,1-D14/(D13+D16),"-") -> 0.09817705984 | E17: =IF(E13>0,1-E14/(E13+E16),"-") -> 0.09175059785 | F17: =IF(F13>0,1-F14/(F13+F16),"-") -> 0.08816934695 | G17: =IF(G13>0,1-G14/(G13+G16),"-") -> 0.09102589328
A18: Thermal Energy Produced *** | B18: MWh | G18: =SUM(C18:F18) -> 0 | H18: =IF(G18>0,G18*1000/$G$10,"-") -> -
A19: Thermal Energy Exported *** | G19: 0 | H19: =IF(G19>0,G19*1000/$G$10,"-") -> -
A20: R1 value (if applicable) | B20: R1 | G20: 0.9
A22: Waste Disposal & Recovery | B22: Unit | C22: Q1 | D22: Q2 | E22: Q3 | F22: Q4 | G22: Year Total | H22: % inputs
A23: APC Residues - produced | B23: tonnes | C23: 6724.52 | D23: 6424.8 | E23: 5601.95 | F23: 6936.22 | G23: =SUM(C23:F23) -> 25687.49 | H23: =IF(G23>0,G23/$G$10,"-") -> 0.03919294916
A24: APCr Waste | C24: 6.71 | D24: 0 | E24: 14.76 | F24: 10.5 | G24: 31.97 | H24: =IF(G24>0,G24/$G$10,"-") -> 4.877855269e-05
A25: APCr Filter Bags | C25: 1 | D25: 17 | E25: 0 | F25: 7.61 | G25: =SUM(C25:F25) -> 25.61 | H25: 3.9074718e-05
A26: Oil contaminated solid waste | C26: 2.2 | D26: 3.3 | E26: 0 | F26: 10.08 | G26: =SUM(C26:F26) -> 15.58 | H26: 2.377134348e-05
A27: Gases in pressurised containers | C27: 0 | D27: 0.2 | E27: 0 | F27: 0 | G27: 0.2 | H27: 3.051520344e-07
A28: Waste paint | C28: 0.5 | D28: 0 | E28: 0 | F28: 0 | G28: 0.5 | H28: 7.628800859e-07
A29: Fluorescent tubes | C29: 0 | D29: 0.001 | E29: 0 | F29: 0 | G29: 0.001 | H29: 1.525760172e-09
A30: Waste oil | C30: 1.06 | D30: 0 | E30: 0.534 | F30: 0 | G30: 1.594 | H30: 2.432061714e-06
A31: Ion exchange resin | C31: 0.075 | D31: 0 | E31: 0 | F31: 0 | G31: 0.075 | H31: 1.144320129e-07
A32: Waste lime | C32: 0 | D32: 0 | E32: 0 | F32: 2 | G32: 2 | H32: 3.051520344e-06
G33: 0 | H33: -
A34: IBA - produced | C34: 29700.49 | D34: 32594.54 | E34: 31091.76 | F34: 34614.22 | G34: 128001.01 | H34: 0.195298843
A35: Ferrous metals removed from bottom ash | C35: 1926.32 | D35: 1865.74 | E35: 1936.52 | F35: 2383.6 | G35: 8112.18 | H35: 0.01237724115
A36: Dry Mixed Recyclables | C36: 0.62 | D36: 0.52 | E36: 0.34 | F36: 0.34 | G36: 1.82 | H36: 2.776883513e-06
A37: General Waste | C37: 11.28 | D37: 5.88 | E37: 19.18 | F37: 6.22 | G37: 42.56 | H37: 6.493635291e-05
A38: Waste ferrous metal | C38: 7.16 | D38: 5.1 | E38: 12.3 | F38: 9.94 | G38: 34.5 | H38: 5.263872593e-05
A39: Waste Electrical and Electronic Equipment | C39: 1 | D39: 0.25 | E39: 0 | F39: 0 | G39: 1.25 | H39: 1.907200215e-06
A40: Fly ash | C40: 7.345 | D40: 0 | E40: 0 | F40: 0 | G40: 7.345 | H40: 1.120670846e-05
A41: Wood | C41: 1.2 | D41: 1.1 | E41: 2.44 | F41: 2.12 | G41: 6.86 | H41: 1.046671478e-05
A42: Rubble | C42: 17.18 | D42: 0 | E42: 2.12 | F42: 0 | G42: 19.3 | H42: 2.944717132e-05
A43: Sewage | C43: 5.74 | D43: 0 | E43: 4.14 | F43: 0 | G43: 9.88 | H43: 1.50745105e-05
A44: IBA waste | C44: 0 | D44: 0 | E44: 26.9 | F44: 204.68 | G44: 231.58 | H44: 0.0003533355406
G45: 0 | H45: -
A47: Raw Material Usage | B47: Unit | C47: Q1 | D47: Q2 | E47: Q3 | F47: Q4 | G47: Year Total | H47: kg or Ltr /te
A48: Mains Water | B48: ltrs | C48: 15668200 | D48: 16068000 | E48: 12565400 | F48: 15981700 | G48: =SUM(C48:F48) -> 60283300 | H48: =IF(G48>0,G48/$G$10,"-") -> 91.97785817
A49: Other Water | B49: ltrs | C49: 14872834 | D49: 13654112 | E49: 16826055 | F49: 20199100 | G49: 65552101 | H49: =IF(G49>0,G49/$G$10,"-") -> 100.0167849
A50: Ammonia | B50: kgs | C50: 54905.7509 | D50: 27353.4443 | E50: 20891.2613 | F50: 37908 | G50: 141058.4565 | H50: 0.2152213748
A51: Activated Carbon | B51: kgs | C51: 68545 | D51: 90360 | E51: 61404 | F51: 62409 | G51: 282718 | H51: 0.4313598643
A52: Lime / hydrated lime | B52: kgs | C52: 3082065 | D52: 2968242 | E52: 2652773 | F52: 3050066 | G52: 11753146 | H52: 17.93248206
A53: Fuel oil | B53: ltrs | C53: 129284.025 | D53: 120925.452 | E53: 195171.056 | F53: 202413 | G53: 647793.533 | H53: 0.9883775722
A55: Summary | B55: Line/Unit | C55: Q1 | D55: Q2 | E55: Q3 | F55: Q4 | G55: Year Total | I55: Hrs in year
A56: Availability of waste combustion by line, hrs **** | B56: 1 | C56: 2059 | D56: 2166 | E56: 1950 | F56: 2180 | G56: =SUM(C56:F56) -> 8355 | H56: =+G56/$I$56 -> 0.9537671233 | I56: 8760
B57: 2 | C57: 2127.7 | D57: 2084.9 | E57: 1962.9 | F57: 2035.9 | G57: 8211.4 | H57: =+G57/$I$56 -> 0.9373744292
A58: Overall Availability, mean avg. of all lines, hrs | C58: =AVERAGE(C56:C57) -> 2093.35 | D58: =AVERAGE(D56:D57) -> 2125.45 | E58: 1956.45 | F58: 2107.95 | G58: =AVERAGE(G56:G57) -> 8283.2 | H58: =+G58/$I$56 -> 0.9455707763
A59: Hours of turbine operations, hrs | B59: 1 | C59: 1416 | D59: 2184 | E59: 2088 | F59: 2180 | G59: 7868 | H59: =+G59/$I$56 -> 0.898173516
A60: Net Calorific Value of waste | B60: MJ/kg | C60: 11.647 | D60: 11.91 | E60: 12.26 | F60: 11.96 | G60: =AVERAGE(C60:F60) -> 11.94425
A61: Abnormal Events | B61: qty. | C61: 0 | D61: 1 | E61: 2 | F61: 0 | G61: 3 | H61: =IF(G61>0,"yes","no") -> yes
A62: Abnormal operation | B62: hours | C62: 0 | D62: 0.5 | E62: 4.5 | F62: 0 | G62: 5 | H62: =+(G62)/I56 -> 0.0005707762557
A63: Permit Breaches | B63: qty. | C63: 2 | D63: 0 | E63: 0 | F63: 2 | G63: 4 | H63: =IF(G63>0,"yes","no") -> yes

Sheet Operational Summary
A1: =+'Cover Page'!$B$29 -> Annual Performance Report 2023 | E1: =+'Cover Page'!$B$33 -> Ferrybridge 2
A3: Summary of Plant Operations and Maintenance during the reporting year | K3: Notes:
A5: Key Operational Activities February Line 1 Pitstop Outage March Line 2 furnace explosion caused ID fan trip. March Line 2 ID fan bearing repair April Line 1 waste crane fibre optic fault April Line 2 Pitstop Outage June Ram Feeder Control Block July Line 2 Superheater Drain Repair August Line 1 Ash Extractor blockage August Line 2 PAC Dosing System Failure September Line 1 Outage September Line 2 Outage November Line 2 ID Fan Motor Replacement December Line 1 Trip due to comms fault December Line 1 Trip due to comms fault December Line 2 Trip due to comms fault December Line 1 Waste blockage resulted in blocked ash extractors. | K5: Include summary of key operational and/or mainteanance activity undertaken in the year, such as any major component upgrades and/or replacements
A6: February 2023 – Line 1 - Mechanical Boiler drone inspection. Full inspection of pass 1,2 and 3 Ash extractor - Ash extractor wear plate inspections. Wear plates replaced. 2nd/3rd pass conveyor - Internals replaced. Vibrating conveyors - NDT thickness checks carried out. Economiser screw feeder replaced. Boiler Grate - Line 1 grate inspection and repairs. Boiler Grate - NDT carried out by IRIS. Grate - Defective roof elements replaced. Grate cooling - NRV replaced. Boiler drum level column master valve replaced. Superheaters Roof vent valve gland packing replaced. Primary air fan Inspect and clean impellor. February 2023 – Line 1 - Electrical Transformer and LV Board Maintenance - Annual maintenance of Transformer, and LV Boards within a substation. Quantum VFD service - The service included a general clean down, filter cleaning, terminal tightness, visual inspection, and module phase alignment. ACC fan motor terminal inspection and checks
A7: April 2023 – Line 2 - Mechanical Boiler drone inspection - Full inspection of pass 1,2 and 3 Ash extractor - Ash extractor wear plate inspections. Wear plates replaced. 2nd/3rd pass conveyor - Internals replaced. Vibrating conveyors- NDT thickness checks carried out. Boiler Grate inspections and repairs. Boiler Grate - NDT. Feed hopper - Boiler hopper wear plate inspection/replacement. Superheaters - Roof vent valve gland packing replaced. Primary air fan - Inspection and impellor cleaned. April 2023 – Line 2 – Electrical Transformer and LV Board Maintenance - Annual maintenance of Transformer, and LV Boards within a substation. VFD service - The service included a general clean down, filter cleaning, terminal tightness, visual inspection, and module phase alignment.
A8: September 2023 – Line 1 – Mechanical Full clean and inspection of internal boiler/furnace gas path. Lower ram feeder cover plates replaced. NDT checks on boiler. Inspection of mechanical grate on lines 1 and 2 inclusive of minor repairs. All 4 hydraulic ram feeders replaced as part of maintenance strategy. Thorough statutory inspections carried out as per PSSR WSE. Full inspection and overhaul of ancillary plant equipment inclusive of Ash, FGT, APCR systems. Inspections of site wide safety valves and test certs provided. Site wide valve inspections and repairs. Economiser outlet expansion joints replaced. September 2023 – Line 1 – Electrical Transformer and LV Board Maintenance - Annual maintenance of Transformer, and LV Boards within a substation. Circuit breaker service and protection testing Quantum VFD service - The service included a general clean down, filter cleaning, terminal tightness, visual inspection, and module phase alignment. Transmitter calibrations 400VDC UPS service and Inspection DCS upgrades
A9: September 2023 – Line 2 – Mechanical Full clean and inspection of internal boiler/furnace gas path. Lower ram feeder cover plates replaced. Boiler NDT checks. Inspection of mechanical grate on lines 1 and 2 inclusive of minor repairs. Hydraulic ram feeder replaced. Thorough statutory inspections carried out as per PSSR WSE. Full inspection and overhaul of ancillary plant equipment inclusive of Ash, FGT, APCR systems. Inspections of site wide safety valves and test certs provided. Site wide valve inspections and repairs. Superheater repairs. Economiser repairs. September 2023 – Line 2 – Electrical Transformer and LV Board Maintenance - Annual maintenance of Transformer, and LV Boards within a substation. Circuit breaker service and protection testing Quantum VFD service - The service included a general clean down, filter cleaning, terminal tightness, visual inspection, and module phase alignment. Transmitter calibrations 400VDC UPS service and Inspection Valmet upgrades DCS September 2023 – Common– Electrical Transformer and LV Board Maintenance - Annual maintenance of Transformer, and LV Boards within a substation. Circuit breaker service and protection testing Quantum VFD service - The service included a general clean down, filter cleaning, terminal tightness, visual inspection, and module phase alignment. Transmitter calibrations IPB testing
A11: Summary of Residue Handling for the reporting year
A13: Incinerator Bottom Ash (IBA) from Ferrybridge 2 is stored in the Ash Bunker and then outloaded by the ash crane grab to receiving dumper trucks. Since operations began in 2019, the IBA has been collected and taken to the Blue Phoenix Ferrybridge site, which is adjacent to the north of the Ferrybridge 2 site. Movement of the IBA is carried out by dumper truck via a predominantly internal road network to the Blue Phoenix site where it is processed into Incinerator Bottom Ash Aggregate (IBAA). APCr is collected in silos and then discharged to receiving tanker for off-site disposal. The APCr is transported to OCO Technology and occasionally to Castle Environmental Ltd. Castle Environmental receives APCr at two sites located in Ilkeston (Derbyshire) and Stoke on Trent, whereas OCO Technology has one site located in Leeds. Castle Environmental currently recycles approximately 70% of the APCr whereas OCO Technology recycles 100%. | K13: Include in here a summary of residue handling regimes and destinations

Sheet Perf. Form 1
A1: =+'Cover Page'!C39 -> 2023 | B1: Annual Reporting Performance Form 1
A3: =+'Cover Page'!B31 -> Permit EPR/XP3833DK | F3: Operator: | G3: =+'Cover Page'!B37:I37 -> 0
A4: Facility: | B4: =+'Cover Page'!B33:I33 -> Ferrybridge 2 | F4: Form: | G4: Performance 1
A6: Reporting Period from: | D6: 2023-01-01 | F6: to: | G6: 2023-12-31
A8: =+A1 -> 2023 | B8: Annual Reporting of Waste Disposal and Recovery
A9: Waste Description | C9: Disposal Route(s) | E9: Disposal Tonnes | G9: Recovery Tonnes | I9: % / tonne of waste incinerated
A10: 1) Hazardous Wastes
A11: APC Residues | C11: D9/R5 | E11: 370.18 | G11: 25317.31 | I11: =IF((E11+G11)>0,(E11+G11)/'Operational Data'!$G$10, "-") -> 0.03919294916
A12: APCr waste | C12: D9/D15 | E12: 39.58 | G12: 0 | I12: =IF((E12+G12)>0,(E12+G12)/'Operational Data'!$G$10, "-") -> 6.03895876e-05
A13: APCr filter bags | C13: D15 | E13: 28.08 | G13: 0 | I13: =IF((E13+G13)>0,(E13+G13)/'Operational Data'!$G$10, "-") -> 4.284334563e-05
A14: Oil contaminated solid waste | C14: R13 | E14: 0 | G14: 5.5 | I14: =IF((E14+G14)>0,(E14+G14)/'Operational Data'!$G$10, "-") -> 8.391680945e-06
A15: Gases in pressurised containers | C15: R13 | E15: 0 | G15: 0.2 | I15: =IF((E15+G15)>0,(E15+G15)/'Operational Data'!$G$10, "-") -> 3.051520344e-07
A16: Waste paint | C16: R13 | E16: 0 | G16: 0.5 | I16: =IF((E16+G16)>0,(E16+G16)/'Operational Data'!$G$10, "-") -> 7.628800859e-07
A17: Bulk waste oil | C17: R13 | E17: 0 | G17: 1.59 | I17: =IF((E17+G17)>0,(E17+G17)/'Operational Data'!$G$10, "-") -> 2.425958673e-06
A18: Ion exchange resin | C18: D15 | E18: 0.08 | G18: 0 | I18: =IF((E18+G18)>0,(E18+G18)/'Operational Data'!$G$10, "-") -> 1.220608137e-07
A19: Fluorescent tubes | C19: R13 | E19: 0 | G19: 0 | I19: =IF((E19+G19)>0,(E19+G19)/'Operational Data'!$G$10, "-") -> -
A20: Lime waste | C20: D15 | E20: 2 | G20: 0 | I20: =IF((E20+G20)>0,(E20+G20)/'Operational Data'!$G$10, "-") -> 3.051520344e-06
A21: Total Hazardous Waste | E21: =SUM(E11:F20) -> 439.92 | G21: =SUM(G11:H20) -> 25325.1 | I21: =IF((E21+G21)>0,(E21+G21)/'Operational Data'!$G$10, "-") -> 0.03931124134
A23: 2) Non-Hazardous Wastes
A24: IBA - produced | C24: R5 | E24: 0 | G24: 128001.01 | I24: =IF((E24+G24)>0,(E24+G24)/'Operational Data'!$G$10, "-") -> 0.195298843
A25: Ferrous metals removed from bottom ash | C25: R4 | E25: 0 | G25: 8112.18 | I25: =IF((E25+G25)>0,(E25+G25)/'Operational Data'!$G$10, "-") -> 0.01237724115
A26: Dry Mixed Recyclables | C26: R13 | E26: 0 | G26: 1.82 | I26: =IF((E26+G26)>0,(E26+G26)/'Operational Data'!$G$10, "-") -> 2.776883513e-06
A27: General Waste | C27: R13 | E27: 0 | G27: 42.56 | I27: =IF((E27+G27)>0,(E27+G27)/'Operational Data'!$G$10, "-") -> 6.493635291e-05
A28: Waste ferrous metal | C28: R4 | E28: 0 | G28: 34.5 | I28: =IF((E28+G28)>0,(E28+G28)/'Operational Data'!$G$10, "-") -> 5.263872593e-05
A29: Waste Electrical and Electronic Equipment | C29: R13 | E29: 0 | G29: 1.25 | I29: =IF((E29+G29)>0,(E29+G29)/'Operational Data'!$G$10, "-") -> 1.907200215e-06
A30: Fly ash | C30: D15 | E30: 7.345 | G30: 0 | I30: =IF((E30+G30)>0,(E30+G30)/'Operational Data'!$G$10, "-") -> 1.120670846e-05
A31: Wood | C31: R3 | E31: 0 | G31: 6.86 | I31: =IF((E31+G31)>0,(E31+G31)/'Operational Data'!$G$10, "-") -> 1.046671478e-05
A32: Rubble | C32: R13 | E32: 0 | G32: 19.3 | I32: =IF((E32+G32)>0,(E32+G32)/'Operational Data'!$G$10, "-") -> 2.944717132e-05
A33: Sewage | C33: D8 | E33: 9.88 | G33: 0 | I33: =IF((E33+G33)>0,(E33+G33)/'Operational Data'!$G$10, "-") -> 1.50745105e-05
A34: IBA waste | C34: D5 | E34: 231.58 | G34: 0 | I34: =IF((E34+G34)>0,(E34+G34)/'Operational Data'!$G$10, "-") -> 0.0003533355406
A35: Total Non-Hazardous Waste | E35: =SUM(E24:F34) -> 248.805 | G35: =SUM(G24:H34) -> 136219.48 | I35: =IF((E35+G35)>0,(E35+G35)/'Operational Data'!$G$10, "-") -> 0.208217874
A36: TOTAL WASTE | E36: =+E35+E21 -> 688.725 | G36: =+G35+G21 -> 161544.58 | I36: =IF((E36+G36)>0,(E36+G36)/'Operational Data'!$G$10, "-") -> 0.2475291153
A38: Operator’s comments :
A42: =+A1 -> 2023 | B42: Annual Reporting of Water and Other Raw Material Usage
A43: Raw Material | E43: Usage | G43: Unit | H43: Specific Useage | J43: Unit
A44: Mains Water | E44: =+'Operational Data'!G48 -> 60283300 | G44: m3 | H44: =IF(E44>0,E44/'Operational Data'!$G$10,"-") -> 91.97785817 | J44: m3/te
A45: Total Water | E45: =+'Operational Data'!G49+'Operational Data'!G48 -> 125835401 | G45: m3 | H45: =IF(E45>0,E45/'Operational Data'!$G$10,"-") -> 191.9946431 | J45: m3/te
A46: Ammonia | E46: =+'Operational Data'!G50 -> 141058.4565 | G46: kg | H46: =IF(E46>0,E46/'Operational Data'!$G$10,"-") -> 0.2152213748 | J46: kg/te
A47: Activated Carbon | E47: =+'Operational Data'!G51 -> 282718 | G47: kg | H47: =IF(E47>0,E47/'Operational Data'!$G$10,"-") -> 0.4313598643 | J47: kg/te
A48: Lime / hydrated lime / Sodium Bicarb. | E48: =+'Operational Data'!G52 -> 11753146 | G48: kg | H48: =IF(E48>0,E48/'Operational Data'!$G$10,"-") -> 17.93248206 | J48: kg/te
A50: Operator’s comments :
A58: =+A42 -> 2023 | B58: Annual Reporting of other performance indicators
A59: Parameter | C59: Results by Line
C60: A1 | D60: A2 | E60: Turbine 1
A61: Operating hours for the year, hours | C61: 8355 | D61: 8211 | E61: 7868
A62: Number of periods of abnormal operation, qty. | C62: 0 | D62: 10
A63: Cumulative hours of abnormal operation for this year, hours | C63: 0 | D63: 5
A65: Operator’s comments :

Sheet Energy Form 1
A1: =+'Cover Page'!C39 -> 2023 | B1: Annual Reporting of Energy Usage/Export
A3: =+'Cover Page'!B31 -> Permit EPR/XP3833DK | F3: Operator: | G3: =+'Cover Page'!B37:I37 -> 0
A5: Facility: | B5: =+'Cover Page'!B33:I33 -> Ferrybridge 2 | F5: Form: | G5: Energy 1
A7: Reporting Period from: | D7: =+'Perf. Form 1'!D6:E6 -> 2023-01-01 | F7: to: | G7: =+'Perf. Form 1'!G6:H6 -> 2023-12-31
A9: Energy Source | D9: Energy Usage | F9: Unit | G9: Specific Useage (KWh/tonne incinerated
A10: Electricity Produced | D10: =+'Operational Data'!G13 -> 675434.54 | F10: MWh | G10: =+'Operational Data'!H13 -> 1030.55112
A11: Electricity Imported | D11: =+'Operational Data'!G16 -> 287.2385 | F11: MWh | G11: =+'Operational Data'!H16 -> 0.4382570631
A12: Electricity Exported | D12: =+'Operational Data'!G14 -> 614213.6 | F12: MWh | G12: =+'Operational Data'!H14 -> 937.1426479
A13: Gas Oil | D13: 571.633 | F13: tonnes
A14: Steam/hot water exported | D14: =+'Operational Data'!G19 -> 0 | F14: GWh | G14: =+'Operational Data'!H19 -> -
A16: Operator’s comments :
A17: Review of Combined Heat and Power (CHP) options. It is a permit requirement that the viability of CHP implementation is reviewed at least every four years. Information submitted in the annual report for 2022 provides relevant information and there are no updates for 2023.

Sheet Permit Compliance
A1: =+'Cover Page'!$B$29 -> Annual Performance Report 2023 | E1: =+'Cover Page'!$B$33 -> Ferrybridge 2
A3: Summary of Permit Compliance
A5: Compliance with permit limits for continuously monitored pollutants
A7: The plant met its emission limits as shown in the table below:
A8: Substance | C8: Percentage time compliant during operationNote 1 | L8: Notes:
C9: Half-hourly limit | F9: Daily limit | L9: Note 1: Please report to 2 decimal places, i.e. xx.xx% Note 2: Please provide a brief summary of each notification or non-compliance in the table (rather than just referring to notifications that were sent to the Regulator), including stating the value of measured result for any ELV exceedances.
A10: Particulates | C10: 0.9999 | F10: 1
A11: Oxides of nitrogen | C11: 1 | F11: 1
A12: Sulphur dioxide | C12: 1 | F12: 1
A13: Carbon monoxide | C13: 100.00% of 95% of 10-min averages | F13: 1
A14: Total organic carbon | C14: 1 | F14: 1
A15: Hydrogen chloride | C15: 1 | F15: 1
A16: Ammonia | C16: 1 | F16: 1
A18: Summary of any notifications or non-compliances under the permit
A19: Date | B19: Summary of notification or non-compliance [including Line/Reference]Note 2 | E19: Reason | H19: Measures taken to prevent reoccurrence
A20: 2023-03-01 | B20: Telephone and quarterly report notification for Line 1 exceedance of the heavy metals ELV (0.691mg/m3 aginst an ELV of 0.5mg/m3) from H1 periodic stack test. | E20: Investigation ongoing | H20: Re-test carried out, results demonstrate compliance with ELV.
A21: 2023-03-01 | B21: Telephone and quarterly report notification for Line 2 exceedance of the hydrogen fluoride ELV (3.08mg/m3 aginst an ELV of 2mg/m3) from H1 periodic stack test. | E21: Investigation ongoing | H21: Re-test carried out, results demonstrate compliance with ELV.
A22: 2023-03-18 | B22: Schedule 5 Part A submitted for exceedance of dust 1/2 hourly average from 16:30 to 16:59hrs on 18/03/23. | E22: Occurred due to unstable combustion conditions during startup. | H22: Plant was in startup at the time of the incident and no additional measures are deemed necessary.
A23: 2023-03-30 | B23: Schedule 5 Part B submitted for above notification. | E23: As above | H23: As above
A24: 2023-06-19 | B24: Notification to EA in quarterly report for Line 2 exceedance of particulate matter 1/2 hourly average of 48.11mg/m3. | E24: Occurred due to the failure of plant (ID fan) and therefore is deemed an Abnormal Operations event. The upper limit of 150mg/m3 was not exceeded at any time during this event. | H24: Planned preventative maintenance on sample lines, operator training on CEMS related issues.
A25: 2023-09-20 | B25: Notification to EA in quarterly report for Line 2 exceedance of particulate matter 1/2 hourly average of 30.08mg/m3. | E25: Occurred due to the failure of plant (ID fan) and therefore is deemed an Abnormal Operations event. The upper limit of 150mg/m3 was not exceeded at any time during this event. | H25: Planned preventative maintenance on sample lines, operator training on CEMS related issues.
A26: 2023-11-08 | B26: Telephone and quarterly report notification for Line 1 exceedance of the hydrogen fluoride ELV (6.1mg/m3 aginst a pre-BREF ELV of 2mg/m3) from H2 periodic stack test. | E26: Investigation ongoing | H26: Re-test carried out, results demonstrate compliance with ELV.
A27: 2023-11-08 | B27: Telephone and quarterly report notification for Line 2 exceedance of the hydrogen fluoride ELV (2.3mg/m3 aginst a pre-BREF ELV of 2mg/m3) from H2 periodic stack test. | E27: Investigation ongoing | H27: Re-test carried out, results demonstrate compliance with ELV.
A29: Summary of any complaints received and actions to taken to resolve them.
A30: Date | B30: Summary of complaint [including Line/Reference] | E30: Reason * | H30: Measures taken to prevent reoccurrence
A31: 2023-02-28 | B31: External complaint about noise | E31: Unsubstantiated | H31: Discussed at morning meeting, site visit to locality but unable to hear noise.
A32: 2023-03-06 | B32: External complaint about litter in the A162 grass verges. | E32: Unsubstantiated | H32: Discussed at morning meeting, complainant contacted and informed of actions taken at site level to minimise litter from RDF delivery vehicles.
A33: 2023-04-11 | B33: External complaint about loose RDF coming out the top of fuel delviery vehicle. | E33: Unsubstantiated | H33: Discussed at morning meeting, complainant contacted and informed of actions taken at site level to minimise litter from RDF delivery vehicles.
A34: 27/07/2023​ | B34: External complaint about RDF delivery vehicles queuing on Kirkhaw Lane | E34: Substantiated | H34: Discussed at morning meeting, early morning visit identified numerous RDF delivery vehicles parked, photographic and dashcam footage provided to dayteams and site management.
A35: 09/08/2023​ | B35: External complaint about noise | E35: Unsubstantiated | H35: Discussed at morning meeting, investigation found source of noise to be piling works on construction site to the east of F1/F2 boundary. Informed complainant.
A36: 12/09/2023​ | B36: External complaint of loose RDF coming out the top of a delivery vehicle. | E36: Attributable | H36: Discussed at morning meeting, fuel supplier informed, offending trailer taken off road pending repairs.
A37: 20/09/2023​ | B37: External complaint of loose RDF coming out the top of a delivery vehicle. | E37: Unsubstantiated | H37: Discussed at morning meeting, investigation showed vehicle had not attended either F1 or F2 sites.
A38: 2023-12-05 | B38: External complaint about lorries queuing on Kirkhaw Lane and onto Stranglands Lane. | E38: Attributable | H38: Discussed at morning meeting, issued raised with fuel suppliers.
E39: * including whether substantiated by the operator or the EA

Sheet Improvements
A1: =+'Cover Page'!$B$29 -> Annual Performance Report 2023 | E1: =+'Cover Page'!$B$33 -> Ferrybridge 2
A3: Summary of Plant Improvements
A5: Summary of any efficiency improvements that have been completed within the year.
A6: Burner fuel oil delivery pump skid upgrade. APCR offload area access platforms. Fabric filter replacement Line 2. Turbine hall fire protection upgrades. Reactor screw trace heating installation
A12: Summary of any permit improvement conditions that have been completed within the year and the resulting environmental benefits.
A13: IC2 The operator shall submit a report to the Environment Agency on whether waste feed to the plant can be proven to have a low and stable mercury content. The report shall have regard to BAT 4 of the BAT conclusions, be based on historic mercury emissions monitoring data and have regard to the Environment Agency Mercury Monitoring Protocol. Report submitted to the EA within specified timeframe, decision pending. IC3 The operator shall submit a report to the Environment Agency on whether dioxin emissions to air are stable. The report shall have regard to BAT 4 of the BAT conclusions, be based on historic dioxin emissions monitoring data and have regard to the Environment Agency Dioxins Monitoring Protocol. Report submitted to the EA within specified timeframe, decision pending. IC4 The operator shall perform a study to determine the extent to which the operation of the current systems in place at the plant to minimise NOx emissions can be further optimised such that emissions are reduced as far as possible below 180 mg/Nm3 as a daily average, without significantly increasing emissions of other pollutants or having a significant negative effect on plant operation, reliability or bottom ash quality. The study shall be based on the results of trials carried out at the installation and shall have regard to the recommendations for test conditions set out in Section 5.4.3 of report titled ‘Establishing factors that influence NOx reduction at waste incineration plant to levels below the upper end of the BAT-AELs’ (dated 14/01/2022), or other methodology agreed in writing with the Environment Agency. A written report of the study shall be submitted to the Environment Agency which shall include but not necessarily be limited to the following: • A brief description of the currently installed measures at the installation to minimise NOx emissions, including details of how the reagent dosing system responds to emissions monitoring data and historic data which illustrates the current achievable level of daily NOx emissions. • The results of trials conducted to further reduce daily average NOx emissions using currently installed measures, including: - a description of the parameters that were varied during the trial e.g. ammonia or urea feed rates, physical form of urea injected, air flows, and the range over which they were varied. - the levels of NOx achieved and associated levels of ammonia and nitrous oxide emissions and reagent consumption. - observed effects and predicted long-term impacts on plant operation, reliability and maintenance regime. - any changes to the composition of the bottom ash and boiler ash and the implications of those changes for the ability to process and use the ash, as well as for the pollution potential of the ash both during processing and its subsequent use as a secondary aggregate. - any other relevant cross-media effects. The report shall also include a description of the extent to which current systems in place at the plant to minimise NOx emissions can be optimised on a permanent basis, including justification and an implementation plan where relevant. Report submitted to the EA within specified timeframe, decision pending.
A23: Summary of any changes to the plant or operating techniques which required a variation to the permit and a summary of the resulting environmental impact.
A24: Permit variation to allow acceptance of Mixed Municipal Waste under EWC code 20 03 01. Revised odour management plan and copy of waste acceptance procedure submitted to and approved by EA. Variation determined and consolidated permit issued 09/03/2023.
A31: Summary of any other improvements made to the plant or planned to be made and a summary of the resulting environmental benefits.
A32: None

Sheet Public Liasion
A1: =+'Cover Page'!$B$29 -> Annual Performance Report 2023 | E1: =+'Cover Page'!$B$33 -> Ferrybridge 2
A3: Details of Public & Stakeholder Liasion
A5: Summary of events held during the reporting year.
A6: Date | C6: Description
A7: 2023-04-18 | C7: Community liaison group meeting held
A9: 2023-07-11 | C9: Community liaison group meeting held
A11: 2023-11-22 | C11: Transport liaison group meeting held
A14: List of events planned for next year
A15: Date | C15: Description
A16: April/July/October 2024 | C16: Community liaison group meetings to continue at regular intervals through the year, dates to be confirmed.
A18: April/October 2024 | C18: Transport liaison group meetings to continue at regular intervals through the year, dates to be confirmed.
A21: If you wish to be involved in the public liasion programme, please contact Philip Curds philip.curds@enfinium.co.uk

Sheet CO2 N2O
A1: =+'Cover Page'!$B$29 -> Annual Performance Report 2023 | B1: =+'Cover Page'!$B$33 -> Ferrybridge 2
A3: Carbon dioxide emissions and biogenic content of waste inputs | E3: Notes:
A5: Carbon dioxide emissions (all types of plant)
A6: Annual mass of carbon dioxide released | B6: tonnes | C6: 707245
A7: Annual mass of carbon dioxide released per tonne of waste burned | B7: t CO2 / t waste | C7: 1.08
A8: Annual mass of carbon dioxide released per MWh of energy exported | B8: t CO2 / MWh export | C8: 1.15
A9: Description of how annual carbon dioxide mass emission has been calculated. See Note 1 | B9: Data from CEMS has been used to calculate annual carbon dioxide mass emission. | E9: Note 1: Where available, data from CO2 CEMS should be used. Otherwise, only where no CEMS data is available, a suitable emissions factor should be used based on the tonnage of waste burned e.g.0.942 tCO2/t waste as per Tolvik report 2022, or other justified emissions factor - refer to embedded Environment Agency guidance note above or updated version for suitable descriptive text.
A10: Nitrous oxide emissions (only plants which use ammonia or urea to abate NOx emissions)
A11: Annual mass emissions of nitrous oxide | B11: tonnes N2O | C11: 10.171
A12: Description of how annual nitrous oxide mass emission has been calculated See Note 2 | B12: Data from CEMS has been used to calculate annual nitrous oxide mass emission. | E12: Note 2: Where available, data from N2O CEMS should be used. If no CEMS data is available, from periodic monitoring. Otherwise, a suitable emissions factor should be used based on the tonnage of waste burned e.g. 0.0981 kgN20/t waste as per 2021 Pollution Inventory data for plants with urea-based SNCR - refer to embedded Environment Agency guidance note above or updated version for suitable descriptive text.
A13: Total annual carbon dioxide and nitrous oxide emissions. See Note 3. | B13: tonnes CO2e | C13: 710276 | E13: Note 3: Total annual carbon dioxide and nitrous oxide emissions reported as carbon dioxide equivalent where 1 tonne nitrous oxide is equivalent to 298 tonne carbon dioxide
A14: Biogenic CO2 emissions (See Note 4) | E14: Note 4: Only plants combusting residual municipal waste, refuse derived fuel or solid recovered fuel
A15: Percentage of total carbon dioxide emissions arising from biogenic waste | B15: % | C15: 0.476
A16: No. of measurements undertaken | B16: Number | C16: 538
A17: Description of how percentage biogenic carbon dioxide emissions have been measured or calculated. See Note 5 | B17: Calculated from lab analysis via a UKAS accredited method ISO 216:2021. | E17: Note 5: Examples include direct measurement via C14 method or BIOMA software - refer to embedded Environment Agency guidance note above or updated version for suitable descriptive text, quoting standards where relevant. Otherwise, as an approximation (and in lieu of any more accurate metrics which may be developed in future), the measured or estimated biogenic fraction by net calorific value can be assumed to be the same as the biogenic CO2 fraction of the total CO2 emissions from the plant.
A18: Biogenic fraction of waste feedstock (See Note 4)
A19: Yearly average biogenic percentage of the waste by net calorific value (NCV) | B19: % | C19: 0.478
A20: If sampling undertaken, no. of samples used to ascertain average biogenic % above | B20: Number | C20: 538
A21: Description of how biogenic percentage (by NCV) has been calculated or estimated. See Note 6 | B21: From fuel model which takes weighbridge data and RDF test results sampled at source (calculated from lab analysis via a UKAS accredited method ISO 21644:2021), then weights each suppliers tonnage on a heat input basis. | E21: Note 6: Where available, data from waste sampling should be used; otherwise, an estimated figure with justification can be used, or a figure assumed on the basis of a national average e.g. 2017 WRAP data for residual waste of 51.8% biogenic energy content - refer to embedded Environment Agency guidance note above or updated version for suitable descriptive text, quoting standards where relevant.
A23: Comments:

Sheet Residue Quality
A1: =+'Cover Page'!$B$29 -> Annual Performance Report 2023 | E1: =+'Cover Page'!$B$33 -> Ferrybridge 2
A3: Residue Quality Monitoring Requirements
A5: Summary of monitoring undertaken and compliance
A6: Monthly IBA hazard assessments and annual full hazardous property assessments, quarterly IBA and APC residue compliance monitoring, annual characterisation of IBA and APC residue. Analysis and reporting carried out by WRc.
A9: Commentary on any specific events
A10: Date & Event | C10: Description
A11: October 2023 - IBA and APC Annual Characterisation Report | C11: Results of the annual characterisation of IBA and APC residues from Ferrybridge 2, including a full hazardous property assessment of IBA as required by the ESA Protocol 2018.
A15: Residue Quality Monitoring Results
A16: Parameter (unit) | C16: Limit | D16: Normal Operation
D17: Bottom ash | F17: APC Residues
A18: Loss on Ignition (average %) | C18: <5% | D18: 1.64
A19: Total Organic Carbon (average %) | C19: <3% | D19: 0.3
A20: No. of Assessments Undertaken | C20: --- | D20: 24 | F20: 4
A21: No. of Hazardous Results | C21: --- | D21: 0
A23: Comments :

Sheet Water
A1: =+'Cover Page'!$B$29 -> Annual Performance Report 2023 | E1: =+'Cover Page'!$B$33 -> Ferrybridge 2
A3: Emissions to Water
A5: Summary of monitoring undertaken and compliance
A6: Frequent sampling and analysis of attenuation pond water, tested for pH and conductivity, odour and appearance prior to discharge to Fryston Beck.
A8: Commentary on any specific events
A9: Date & Event | C9: Description
A10: 2023-06-15 | C10: pH of 9.76 measured at attenuation pond outlet. Water levels very low due to prolonged dry spell. No evidence of site spillage or release of material likely to cause pollution. No discharges to water course were carried out until fresh rainwater had diluted the attenuation pond water sufficiently to give results below the permitted discharge limit.
A12: Emissions to Water / Sewer
A13: Parameter | D13: Monitoring Frequency | F13: Limit | G13: Target | H13: Max. | I13: Average
A14: No parameters set in permit | D14: None | F14: None | G14: None | H14: None | I14: None

Sheet Air (periodic)
A1: =+'Cover Page'!$B$29 -> Annual Performance Report 2023 | E1: =+'Cover Page'!$B$33 -> Ferrybridge 2
A3: Emissions to Air (periodically monitored)
A5: Summary of monitoring undertaken, standards used and compliance | H5: Notes:
A6: Bi-annual monitoring undertaken in February/March 2023 and November 2023. Standards used include EN 14385, MID 14385, EN 1948, ISO 11338, ISO 15713, EN 14789, TGN M22 and EN 16911-1 (MID). March 2023 reported elevated heavy metals on line 1 and elevated hydrogen fluoride on line 2. Re-tests demonstrated results below the relevant emission limit value. November 2023 reported elevated hydrogen fluoride on lines 1 and 2. Re-tests demonstrated results below the emission limit value. All other parameters tested demonstrate compliance against the relevant emission limit values. | H6: Template may require adjustment for any bespoke monitoring requirements of permit - please also check that all default ELV values, reference periods and the stated oxygen reference value match those for your plant, and edit if necessary!
A8: Results of emissions to air that are periodically monitored - oxygen reference 6%
A9: Substance | C9: Ref. Period | D9: Emission Limit Value* | F9: Average | H9: User to add additional tables as necessary, depending on whether quarterly or bi-annual reporting is required for the compliance year
F10: A1 | G10: A2
A11: Hydrogen fluoride | C11: 1 hr | D11: 2 mg/m3 | F11: 0.8 | G11: 3.08
A12: Cd and Th and their compounds | C12: 0.5-8hrs | D12: 0.05 mg/m3 | F12: 0.0023 | G12: 0.00074
A13: Hg and its compounds | C13: 0.5-8hrs | D13: 0.05 mg/m3 | F13: 0.0058 | G13: 0.0023 | H13: * Denotes limits that were in force until 2 December 2023; from 3 December 2023 the following new limits applied (those not listed remained unchanged):
A14: Sb, As, Pb, Cr, Co, Cu, Mn, Ni, V and their compounds | C14: 0.5-8hrs | D14: 0.5 mg/m3 | F14: 0.691 | G14: 0.035
A15: Dioxins & Furans (I-TEQ) | C15: 6-8hrs | D15: 0.1 ng/m3 | F15: 0.0203 | G15: 0.0142 | H15: Substance | I15: Reference Period | J15: Emission Limit Value
A16: PCBs (WHO-TEQ Humans / Mammals) | C16: 6-8hrs | D16: None set ng/m3 | F16: 0.001378 | G16: 0.000438
A17: PCBs (WHO-TEQ Fish) | C17: 6-8hrs | D17: None set ng/m3 | F17: 6.2e-05 | G17: 4e-05 | H17: Hydrogen fluoride | I17: Average of three consecutive measurements of at least 30 minutes each | J17: 1 mg/m3
A18: PCBs (WHO-TEQ Birds) | C18: 6-8hrs | D18: None set ng/m3 | F18: 0.002664 | G18: 0.004785 | H18: Cd and Th and their compounds | I18: Average of three consecutive measurements of at least 30 minutes each | J18: 0.02 mg/m3
A19: Dioxins & Furans (WHO-TEQ Humans / Mammals) | C19: 6-8hrs | D19: None set ng/m3 | F19: 0.0183 | G19: 0.0123 | H19: Hg and its compounds | I19: Average of three consecutive measurements of at least 30 minutes each | J19: 0.02 mg/m3
A20: Dioxins & Furans (WHO-TEQ Fish) | C20: 6-8hrs | D20: None set ng/m3 | F20: 0.0203 | G20: 0.0141 | H20: Sb, As, Pb, Cr, Co, Cu, Mn, Ni, V and their compounds | I20: Average of three consecutive measurements of at least 30 minutes each | J20: 0.3 mg/m3
A21: Dioxins & Furans (WHO-TEQ Birds) | C21: 6-8hrs | D21: None set ng/m3 | F21: 0.36 | G21: 0.0243 | H21: Dioxins & Furans (I-TEQ) | I21: 6-8hrs | J21: 0.06 ng/m3
A22: Anthanthrene | C22: 6-8hrs | D22: None set µg/m3 | F22: 0.49 | G22: 0.36
A23: Benzo(a)anthracene | C23: 6-8hrs | D23: None set µg/m3 | F23: 0.0042 | G23: 0.0036
A24: Benzo(a)pyrene | C24: 6-8hrs | D24: None set µg/m3 | F24: 0.0015 | G24: 0.0015
A25: Benzo(b)fluoranthene | C25: 6-8hrs | D25: None set µg/m3 | F25: 0.0055 | G25: 0.008
A26: Benzo(b)naptho(2,1-d) thiophene | C26: 6-8hrs | D26: None set µg/m3 | F26: 0.0021 | G26: 0.0025
A27: Benzo(c)phenanthrene | C27: 6-8hrs | D27: None set µg/m3 | F27: 0.0015 | G27: 0.0021
A28: Benzo(ghi)perylene | C28: 6-8hrs | D28: None set µg/m3 | F28: 0.0046 | G28: 0.0023
A29: Benzo(k)fluoranthene | C29: 6-8hrs | D29: None set µg/m3 | F29: 0.0017 | G29: 0.0032
A30: Cholanthrene | C30: 6-8hrs | D30: None set µg/m3 | F30: 0.0015 | G30: 0.0015
A31: Chrysene | C31: 6-8hrs | D31: None set µg/m3 | F31: 0.0016 | G31: 0.012
A32: Cyclopenta(cd)pyrene | C32: 6-8hrs | D32: None set µg/m3 | F32: 0.0067 | G32: 0.0015
A33: Dibenzo(ai)pyrene | C33: 6-8hrs | D33: None set µg/m3 | F33: 0.0015 | G33: 0.0015
A34: Dibenzo(ah)anthracene | C34: 6-8hrs | D34: None set µg/m3 | F34: 0.0015 | G34: 0.0015
A35: Fluoranthene | C35: 6-8hrs | D35: None set µg/m3 | F35: 0.076 | G35: 0.054
A36: Indeno(123-cd) pyrene | C36: 6-8hrs | D36: None set µg/m3 | F36: 0.0021 | G36: 0.0026
A37: Naphthalene | C37: 6-8hrs | D37: None set µg/m3 | F37: 0.38 | G37: 0.26
A38: Comments :
A39: H1 stack test results from testing carried out between 27th February and 2nd March 2023. Line 1 result for heavy metals above the ELV, re-test carried out produced result below the ELV. Line 2 result for hydrogen fluoride above the ELV, re-test carried out produced result below the ELV.
A40: Results of emissions to air that are periodically monitored - oxygen reference 6%
A41: Substance | C41: Ref. Period | D41: Emission Limit Value* | F41: Average
F42: A1 | G42: A2
A43: Hydrogen fluoride | C43: 1 hr | D43: 2 mg/m3 | F43: 6.1 | G43: 2.3
A44: Cd and Th and their compounds | C44: 0.5-8hrs | D44: 0.05 mg/m3 | F44: 0.001 | G44: 0.001
A45: Hg and its compounds | C45: 0.5-8hrs | D45: 0.05 mg/m3 | F45: 0.002 | G45: 0.002
A46: Sb, As, Pb, Cr, Co, Cu, Mn, Ni, V and their compounds | C46: 0.5-8hrs | D46: 0.5 mg/m3 | F46: 0.043 | G46: 0.05
A47: Dioxins & Furans (I-TEQ) | C47: 6-8hrs | D47: 0.1 ng/m3 | F47: 0.0112 | G47: 0.0013
A48: PCBs (WHO-TEQ Humans / Mammals) | C48: 6-8hrs | D48: None set ng/m3 | F48: 0.00129 | G48: 0.00133
A49: PCBs (WHO-TEQ Fish) | C49: 6-8hrs | D49: None set ng/m3 | F49: 6e-05 | G49: 6e-05
A50: PCBs (WHO-TEQ Birds) | C50: 6-8hrs | D50: None set ng/m3 | F50: 0.00305 | G50: 0.00273
A51: Dioxins & Furans (WHO-TEQ Humans / Mammals) | C51: 6-8hrs | D51: None set ng/m3 | F51: 0.01 | G51: 0.0241
A52: Dioxins & Furans (WHO-TEQ Fish) | C52: 6-8hrs | D52: None set ng/m3 | F52: 0.011 | G52: 0.0279
A53: Dioxins & Furans (WHO-TEQ Birds) | C53: 6-8hrs | D53: None set ng/m3 | F53: 0.0211 | G53: 0.0462
A54: Anthanthrene | C54: 6-8hrs | D54: None set µg/m3 | F54: 0.001 | G54: 0.001
A55: Benzo(a)anthracene | C55: 6-8hrs | D55: None set µg/m3 | F55: 0.0029 | G55: 0.0057
A56: Benzo(a)pyrene | C56: 6-8hrs | D56: None set µg/m3 | F56: 0.001 | G56: 0.001
A57: Benzo(b)fluoranthene | C57: 6-8hrs | D57: None set µg/m3 | F57: 0.0016 | G57: 0.0016
A58: Benzo(b)naptho(2,1-d) thiophene | C58: 6-8hrs | D58: None set µg/m3 | F58: 0.0011 | G58: 0.0039
A59: Benzo(c)phenanthrene | C59: 6-8hrs | D59: None set µg/m3 | F59: 0.001 | G59: 0.0025
A60: Benzo(ghi)perylene | C60: 6-8hrs | D60: None set µg/m3 | F60: 0.001 | G60: 0.0032
A61: Benzo(k)fluoranthene | C61: 6-8hrs | D61: None set µg/m3 | F61: 0.001 | G61: 0.0023
A62: Cholanthrene | C62: 6-8hrs | D62: None set µg/m3 | F62: 0.001 | G62: 0.001
A63: Chrysene | C63: 6-8hrs | D63: None set µg/m3 | F63: 0.0038 | G63: 0.0149
A64: Cyclopenta(cd)pyrene | C64: 6-8hrs | D64: None set µg/m3 | F64: 0.001 | G64: 0.001
A65: Dibenzo(ai)pyrene | C65: 6-8hrs | D65: None set µg/m3 | F65: 0.001 | G65: 0.001
A66: Dibenzo(ah)anthracene | C66: 6-8hrs | D66: None set µg/m3 | F66: 0.001 | G66: 0.001
A67: Fluoranthene | C67: 6-8hrs | D67: None set µg/m3 | F67: 0.0796 | G67: 0.1251
A68: Indeno(123-cd) pyrene | C68: 6-8hrs | D68: None set µg/m3 | F68: 0.001 | G68: 0.002
A69: Naphthalene | C69: 6-8hrs | D69: None set µg/m3 | F69: 0.3109 | G69: 0.1877
A70: Comments :
A71: H2 stack test results from testing carried out between 6th and 9th November 2023. Line 1 and Line 2 results for hydrogen fluoride above the ELV, re-tests carried out produced results below the ELV.

Sheet Air (CEMS)
A1: =+'Cover Page'!$B$29 -> Annual Performance Report 2023 | I1: =+'Cover Page'!$B$33 -> Ferrybridge 2
A3: Emissions to Air (continously monitored)
N4: Notes:
A5: Summary of monitoring undertaken, standards used and compliance | N5: Template may require adjustment for any bespoke monitoring requirements of permit
A6: Continuous emissions monitoring of Oxides of Nitrogen, Sulphur Dioxide, Hydrogen Chloride, Total Organic Carbon, Particulates, Ammonia and Carbon Monoxide (also Flow, O2, N2O) to EN14181. Instruments used PCME QAL 181, Environement SA MIR FT multigas analyser and Graphite 52M Flame Ionisation Detector (FID). All results demonstrate 100% compliance with the daily emission limit values. All results (except particulates due to abnormal operations conditions) demonstrate 100% compliance with 1/2 hour average emission limit values. | N6: Please check that all default ELV values match those for your plant and edit if necessary!
N7: Report to 1 decimal place
A9: Results of emissions to air that are continuously monitored (maximum and average values for each line) - oxygen reference 11%
A10: Substance | B10: Reference Period | C10: Emission Limit Value** | D10: A1 | F10: A2
D11: Max. | E11: Avg. | F11: Max. | G11: Avg. | H11: ** Denotes limits that were in force until 2 December 2023; from 3 December 2023 the following new limits applied (those not listed remained unchanged):
A12: Oxides of nitrogen | B12: Daily mean | C12: 180 mg/m3 | D12: =NOx!O19 -> 171.31 | E12: =NOx!N19 -> 165.5691667 | F12: =NOx!O34 -> 170.95 | G12: =NOx!N34 -> 161.9158333
B13: ½ hourly mean | C13: 400 mg/m3 | D13: =NOx!M19 -> 269 | E13: =NOx!L19 -> 165.5833333 | F13: =NOx!M34 -> 207 | G13: =NOx!L34 -> 161.8333333 | H13: Substance | I13: Reference Period | J13: Emission Limit Value
A14: Particulates | B14: Daily mean | C14: 10 mg/m3 | D14: =Particulates!O19 -> 4.49 | E14: =Particulates!N19 -> 1.519166667 | F14: =Particulates!O34 -> 7.46 | G14: =Particulates!N34 -> 1.7775
B15: ½ hourly mean | C15: 30 mg/m3 | D15: =Particulates!M19 -> 41 | E15: =Particulates!L19 -> 1.5 | F15: =Particulates!M34 -> 48 | G15: =Particulates!L34 -> 1.75 | H15: Oxides of nitrogen | I15: Daily mean | J15: 180 mg/m3
A16: Total Organic Carbon | B16: Daily mean | C16: 10 mg/m3 | D16: =TOC!O19 -> 1.57 | E16: =TOC!N19 -> 0.4541666667 | F16: =TOC!O34 -> 0.86 | G16: =TOC!N34 -> 0.4433333333 | H16: Particulates | I16: Daily mean | J16: 5 mg/m3
B17: ½ hourly mean | C17: 20 mg/m3 | D17: =TOC!M19 -> 10 | E17: =TOC!L19 -> 0.4166666667 | F17: =TOC!M34 -> 18 | G17: =TOC!L34 -> 0.08333333333 | H17: Hydrogen chloride | I17: Daily mean | J17: 8 mg/m3
A18: Hydrogen chloride | B18: Daily mean | C18: 10 mg/m3 | D18: =HCl!O19 -> 8.64 | E18: =HCl!N19 -> 5.698333333 | F18: =HCl!O34 -> 8.96 | G18: =HCl!N34 -> 6.4275 | H18: Sulphur dioxide | I18: Daily mean | J18: 40 mg/m3
B19: ½ hourly mean | C19: 60 mg/m3 | D19: =HCl!M19 -> 22 | E19: =HCl!L19 -> 5.5 | F19: =HCl!M34 -> 39 | G19: =HCl!L34 -> 6.333333333 | H19: Ammonia | I19: Daily mean | J19: 15 mg/m3
A20: Sulphur dioxide | B20: Daily mean | C20: 50 mg/m3 | D20: ='SO2'!O19 -> 7.43 | E20: ='SO2'!N19 -> 0.8916666667 | F20: ='SO2'!O34 -> 6.72 | G20: ='SO2'!N34 -> 1.181666667
B21: ½ hourly mean | C21: 200 mg/m3 | D21: ='SO2'!M19 -> 99 | E21: ='SO2'!L19 -> 0.9166666667 | F21: ='SO2'!M34 -> 84 | G21: ='SO2'!L34 -> 1.25
A22: Carbon monoxide | B22: Daily mean | C22: 50 mg/m3 | D22: ='CO 95% 10 min'!Q22 -> 13.18 | E22: ='CO 95% 10 min'!P22 -> 1.646666667 | F22: ='CO 95% 10 min'!Q37 -> 42.93 | G22: ='CO 95% 10 min'!P37 -> 3.43
B23: 95%ile 10-min avg * | C23: 150 mg/m3 * | D23: ='CO 95% 10 min'!M22 -> 25 | E23: ='CO 95% 10 min'!N22 -> 1.583333333 | F23: ='CO 95% 10 min'!M37 -> 30 | G23: ='CO 95% 10 min'!N37 -> 3.333333333
A24: Ammonia | B24: Daily mean | C24: No limit set until 03/12/23 | D24: ='NH3'!O19 -> 0.47 | E24: ='NH3'!N19 -> 0.0225 | F24: ='NH3'!O34 -> 0.23 | G24: ='NH3'!N34 -> 0.01416666667
A26: Comments :

Sheet NOx
A1: =+'Cover Page'!$B$29 -> Annual Performance Report 2023 | E1: =+'Cover Page'!$B$33 -> Ferrybridge 2
A3: Monitoring of Oxides of Nitrogen emissions | D3: Whole Installation | G3: See Notes in Cell Q3 | J3: =+A3 -> Monitoring of Oxides of Nitrogen emissions | N3: Per Combustion Line | Q3: Notes:
Q4: User to add logic to complete Whole installation, Table A5:G18. From the data in Per Combustion Line, Table J6:O79, subject to No. of lines installed
A5: mg/Nm3 | B5: 1/2 Hourly Reference Periods | E5: Daily Reference Periods
A6: =+'Cover Page'!C39 -> 2023 | B6: 1/2 hourly NOx ELV | C6: Monthly 1/2 hourly mean | D6: Highest 1/2 hourly maximum | E6: Daily NOx ELV* | F6: Monthly daily mean | G6: Highest daily maximum | J6: =+A6 -> 2023 | K6: mg/Nm3 | L6: Monthly 1/2 hourly mean | M6: Monthly 1/2 hourly maximum | N6: Monthly daily mean | O6: Monthly daily maximum
A7: Jan | B7: 400 | C7: =AVERAGE(L7, L22) -> 169 | D7: =MAX(M7,M22) -> 207 | E7: 180 | F7: =AVERAGE(N7,N22) -> 169.19 | G7: =MAX(O7,O22) -> 170.76 | J7: A1 | K7: Jan | L7: 170 | M7: 198 | N7: 170.04 | O7: 170.76
A8: Feb | B8: 400 | C8: =AVERAGE(L8, L23) -> 167.5 | D8: =MAX(M8,M23) -> 269 | E8: 180 | F8: =AVERAGE(N8,N23) -> 167.61 | G8: =MAX(O8,O23) -> 171.31 | K8: Feb | L8: 168 | M8: 269 | N8: 167.9 | O8: 171.31
A9: Mar | B9: 400 | C9: 164 | D9: 194 | E9: 180 | F9: 164.025 | G9: 168.85 | K9: Mar | L9: 165 | M9: 188 | N9: 165.09 | O9: 168.85 | Q9: Whole Installation table A5:G18:
A10: Apr | B10: 400 | C10: 166 | D10: 202 | E10: 180 | F10: 166 | G10: 170.95 | K10: Apr | L10: 168 | M10: 192 | N10: 167.66 | O10: 170.33 | Q10: Mean: for 1/2 hourly and daily periods calculate mean of values across all operational combustion lines for the month
A11: May | B11: 400 | C11: 165 | D11: 198 | E11: 180 | F11: 164.805 | G11: 170.31 | K11: May | L11: 167 | M11: 196 | N11: 166.79 | O11: 169.25
A12: Jun | B12: 400 | C12: 166.5 | D12: 194 | E12: 180 | F12: 166.205 | G12: 169.8 | K12: Jun | L12: 168 | M12: 192 | N12: 167.66 | O12: 169.8
A13: Jul | B13: 400 | C13: 164.5 | D13: 192 | E13: 180 | F13: 164.37 | G13: 170.5 | K13: Jul | L13: 167 | M13: 188 | N13: 166.86 | O13: 170.5 | Q13: Maximum: for 1/2 hourly and daily periods use the highest value across all operational combustion lines for the month
A14: Aug | B14: 400 | C14: 164.5 | D14: 193 | E14: 180 | F14: 164.73 | G14: 169.88 | K14: Aug | L14: 167 | M14: 190 | N14: 167.18 | O14: 169.88
A15: Sep | B15: 400 | C15: 161.5 | D15: 204 | E15: 180 | F15: 161.75 | G15: 170.26 | K15: Sep | L15: 165 | M15: 204 | N15: 165.37 | O15: 170.26
A16: Oct | B16: 400 | C16: 159 | D16: 212 | E16: 180 | F16: 159.095 | G16: 169.76 | K16: Oct | L16: 162 | M16: 212 | N16: 162.28 | O16: 169.76
A17: Nov | B17: 400 | C17: 158.5 | D17: 223 | E17: 180 | F17: 158.77 | G17: 162.19 | K17: Nov | L17: 160 | M17: 223 | N17: 160.06 | O17: 162.19
A18: Dec | B18: 400 | C18: 158.5 | D18: 202 | E18: 180 | F18: 158.36 | G18: 162.17 | K18: Dec | L18: 160 | M18: 202 | N18: 159.94 | O18: 162.1
E19: * ELV reduced to 180 mg/Nm3 on 3 December 2023 | K19: Annual | L19: =AVERAGE(L7:L18) -> 165.5833333 | M19: =MAX(M7:M18) -> 269 | N19: =AVERAGE(N7:N18) -> 165.5691667 | O19: =MAX(O7:O18) -> 171.31
J21: =+A6 -> 2023 | K21: mg/Nm3 | L21: Monthly 1/2 hourly mean | M21: Monthly 1/2 hourly maximum | N21: Monthly daily mean | O21: Monthly daily maximum
J22: A2 | K22: Jan | L22: 168 | M22: 207 | N22: 168.34 | O22: 170.32
K23: Feb | L23: 167 | M23: 197 | N23: 167.32 | O23: 170.46
K24: Mar | L24: 163 | M24: 194 | N24: 162.96 | O24: 168.52
K25: Apr | L25: 164 | M25: 202 | N25: 164.34 | O25: 170.95
K26: May | L26: 163 | M26: 198 | N26: 162.82 | O26: 170.31
K27: Jun | L27: 165 | M27: 194 | N27: 164.75 | O27: 169.55
K28: Jul | L28: 162 | M28: 192 | N28: 161.88 | O28: 167.78
K29: Aug | L29: 162 | M29: 193 | N29: 162.28 | O29: 168.16
K30: Sep | L30: 158 | M30: 203 | N30: 158.13 | O30: 169.64
K31: Oct | L31: 156 | M31: 196 | N31: 155.91 | O31: 169.09
K32: Nov | L32: 157 | M32: 194 | N32: 157.48 | O32: 161.27
K33: Dec | L33: 157 | M33: 186 | N33: 156.78 | O33: 162.17
K34: Annual | L34: =AVERAGE(L22:L33) -> 161.8333333 | M34: =MAX(M22:M33) -> 207 | N34: =AVERAGE(N22:N33) -> 161.9158333 | O34: =MAX(O22:O33) -> 170.95
A48: Comments :

Sheet SO2
A1: =+'Cover Page'!$B$29 -> Annual Performance Report 2023 | E1: =+'Cover Page'!$B$33 -> Ferrybridge 2
A3: Monitoring of Sulphur dioxide emissions | D3: Whole Installation | G3: See Notes in Cell Q3 | J3: =+A3 -> Monitoring of Sulphur dioxide emissions | N3: Per Combustion Line | Q3: Notes:
Q4: User to add logic to complete Whole installation, Table A5:G18. From the data in Per Combustion Line, Table J6:O79, subject to No. of lines installed
A5: mg/Nm3 | B5: 1/2 Hourly Reference Periods | E5: Daily Reference Periods
A6: =+'Cover Page'!C39 -> 2023 | B6: 1/2 hourly SO2 ELV | C6: Monthly 1/2 hourly mean | D6: Highest 1/2 hourly maximum | E6: Daily SO2 ELV* | F6: Monthly daily mean | G6: Highest daily maximum | J6: =+A6 -> 2023 | K6: mg/Nm3 | L6: Monthly 1/2 hourly mean | M6: Monthly 1/2 hourly maximum | N6: Monthly daily mean | O6: Monthly daily maximum
A7: Jan | B7: 200 | C7: =AVERAGE(L7, L22) -> 1 | D7: =MAX(M7,M22) -> 9 | E7: 50 | F7: =AVERAGE(N7,N22) -> 0.955 | G7: =MAX(O7,O22) -> 2.03 | J7: A1 | K7: Jan | L7: 1 | M7: 7 | N7: 1.08 | O7: 1.74
A8: Feb | B8: 200 | C8: =AVERAGE(L8, L23) -> 1 | D8: =MAX(M8,M23) -> 99 | E8: 50 | F8: =AVERAGE(N8,N23) -> 1.055 | G8: =MAX(O8,O23) -> 7.43 | K8: Feb | L8: 1 | M8: 99 | N8: 0.87 | O8: 7.43
A9: Mar | B9: 200 | C9: 1.5 | D9: 12 | E9: 50 | F9: 1.355 | G9: 2.19 | K9: Mar | L9: 1 | M9: 12 | N9: 1.06 | O9: 1.47 | Q9: Whole Installation table A5:G18:
A10: Apr | B10: 200 | C10: 1 | D10: 9 | E10: 50 | F10: 1.02 | G10: 2.33 | K10: Apr | L10: 1 | M10: 8 | N10: 0.94 | O10: 1.47 | Q10: Mean: for 1/2 hourly and daily periods calculate mean of values across all operational combustion lines for the month
A11: May | B11: 200 | C11: 1 | D11: 11 | E11: 50 | F11: 0.78 | G11: 2.1 | K11: May | L11: 1 | M11: 10 | N11: 0.86 | O11: 1.1
A12: Jun | B12: 200 | C12: 1 | D12: 84 | E12: 50 | F12: 0.72 | G12: 4.97 | K12: Jun | L12: 1 | M12: 12 | N12: 0.78 | O12: 1.2
A13: Jul | B13: 200 | C13: 1 | D13: 28 | E13: 50 | F13: 0.835 | G13: 1.66 | K13: Jul | L13: 1 | M13: 14 | N13: 1.01 | O13: 1.66 | Q13: Maximum: for 1/2 hourly and daily periods use the highest value across all operational combustion lines for the month
A14: Aug | B14: 200 | C14: 1 | D14: 34 | E14: 50 | F14: 0.83 | G14: 1.6 | K14: Aug | L14: 1 | M14: 34 | N14: 1.05 | O14: 1.6
A15: Sep | B15: 200 | C15: 1 | D15: 36 | E15: 50 | F15: 1.185 | G15: 3.28 | K15: Sep | L15: 1 | M15: 36 | N15: 0.91 | O15: 3.28
A16: Oct | B16: 200 | C16: 1 | D16: 44 | E16: 50 | F16: 1.095 | G16: 4.28 | K16: Oct | L16: 1 | M16: 19 | N16: 0.75 | O16: 1.7
A17: Nov | B17: 200 | C17: 1.5 | D17: 36 | E17: 50 | F17: 1.345 | G17: 6.72 | K17: Nov | L17: 1 | M17: 36 | N17: 0.97 | O17: 1.69
A18: Dec | B18: 200 | C18: 1 | D18: 14 | E18: 50 | F18: 1.265 | G18: 4.58 | K18: Dec | L18: 0 | M18: 14 | N18: 0.42 | O18: 1
E19: * ELV reduced to 40 mg/Nm3 on 3 December 2023 | K19: Annual | L19: =AVERAGE(L7:L18) -> 0.9166666667 | M19: =MAX(M7:M18) -> 99 | N19: =AVERAGE(N7:N18) -> 0.8916666667 | O19: =MAX(O7:O18) -> 7.43
J21: =+A6 -> 2023 | K21: mg/Nm3 | L21: Monthly 1/2 hourly mean | M21: Monthly 1/2 hourly maximum | N21: Monthly daily mean | O21: Monthly daily maximum
J22: A2 | K22: Jan | L22: 1 | M22: 9 | N22: 0.83 | O22: 2.03
K23: Feb | L23: 1 | M23: 27 | N23: 1.24 | O23: 2.73
K24: Mar | L24: 2 | M24: 9 | N24: 1.65 | O24: 2.19
K25: Apr | L25: 1 | M25: 9 | N25: 1.1 | O25: 2.33
K26: May | L26: 1 | M26: 11 | N26: 0.7 | O26: 2.1
K27: Jun | L27: 1 | M27: 84 | N27: 0.66 | O27: 4.97
K28: Jul | L28: 1 | M28: 28 | N28: 0.66 | O28: 1.37
K29: Aug | L29: 1 | M29: 12 | N29: 0.61 | O29: 1.36
K30: Sep | L30: 1 | M30: 22 | N30: 1.46 | O30: 2.69
K31: Oct | L31: 1 | M31: 44 | N31: 1.44 | O31: 4.28
K32: Nov | L32: 2 | M32: 28 | N32: 1.72 | O32: 6.72
K33: Dec | L33: 2 | M33: 11 | N33: 2.11 | O33: 4.58
K34: Annual | L34: =AVERAGE(L22:L33) -> 1.25 | M34: =MAX(M22:M33) -> 84 | N34: =AVERAGE(N22:N33) -> 1.181666667 | O34: =MAX(O22:O33) -> 6.72
A48: Comments :

Sheet HCl
A1: =+'Cover Page'!$B$29 -> Annual Performance Report 2023 | E1: =+'Cover Page'!$B$33 -> Ferrybridge 2
A3: Monitoring of Hydrogen Chloride emissions | D3: Whole Installation | G3: See Notes in Cell Q3 | J3: =+A3 -> Monitoring of Hydrogen Chloride emissions | N3: Per Combustion Line | Q3: Notes:
Q4: User to add logic to complete Whole installation, Table A5:G18. From the data in Per Combustion Line, Table J6:O79, subject to No. of lines installed
A5: mg/Nm3 | B5: 1/2 Hourly Reference Periods | E5: Daily Reference Periods
A6: =+'Cover Page'!C39 -> 2023 | B6: 1/2 hourly HCl ELV | C6: Monthly 1/2 hourly mean | D6: Highest 1/2 hourly maximum | E6: Daily HCl ELV* | F6: Monthly daily mean | G6: Highest daily maximum | J6: =+A6 -> 2023 | K6: mg/Nm3 | L6: Monthly 1/2 hourly mean | M6: Monthly 1/2 hourly maximum | N6: Monthly daily mean | O6: Monthly daily maximum
A7: Jan | B7: 60 | C7: =AVERAGE(L7, L22) -> 5.5 | D7: =MAX(M7,M22) -> 13 | E7: 10 | F7: =AVERAGE(N7,N22) -> 5.63 | G7: =MAX(O7,O22) -> 7.36 | J7: A1 | K7: Jan | L7: 5 | M7: 13 | N7: 5.4 | O7: 6.64
A8: Feb | B8: 60 | C8: =AVERAGE(L8, L23) -> 5.5 | D8: =MAX(M8,M23) -> 13 | E8: 10 | F8: =AVERAGE(N8,N23) -> 5.765 | G8: =MAX(O8,O23) -> 8.17 | K8: Feb | L8: 5 | M8: 10 | N8: 5.39 | O8: 7.4
A9: Mar | B9: 60 | C9: 5 | D9: 12 | E9: 10 | F9: 5.295 | G9: 7.51 | K9: Mar | L9: 5 | M9: 12 | N9: 5.36 | O9: 6.83 | Q9: Whole Installation table A5:G18:
A10: Apr | B10: 60 | C10: 5 | D10: 14 | E10: 10 | F10: 5.245 | G10: 7.37 | K10: Apr | L10: 5 | M10: 11 | N10: 5.2 | O10: 6.15 | Q10: Mean: for 1/2 hourly and daily periods calculate mean of values across all operational combustion lines for the month
A11: May | B11: 60 | C11: 5.5 | D11: 15 | E11: 10 | F11: 5.8 | G11: 7.83 | K11: May | L11: 5 | M11: 13 | N11: 5.39 | O11: 6.64
A12: Jun | B12: 60 | C12: 5.5 | D12: 32 | E12: 10 | F12: 5.735 | G12: 7.98 | K12: Jun | L12: 5 | M12: 11 | N12: 5.07 | O12: 6.2
A13: Jul | B13: 60 | C13: 6 | D13: 12 | E13: 10 | F13: 5.895 | G13: 8.39 | K13: Jul | L13: 5 | M13: 10 | N13: 4.85 | O13: 5.66 | Q13: Maximum: for 1/2 hourly and daily periods use the highest value across all operational combustion lines for the month
A14: Aug | B14: 60 | C14: 6.5 | D14: 20 | E14: 10 | F14: 6.52 | G14: 8.25 | K14: Aug | L14: 6 | M14: 20 | N14: 6.02 | O14: 7.47
A15: Sep | B15: 60 | C15: 7 | D15: 15 | E15: 10 | F15: 7.195 | G15: 8.68 | K15: Sep | L15: 7 | M15: 13 | N15: 7.12 | O15: 8.64
A16: Oct | B16: 60 | C16: 6.5 | D16: 39 | E16: 10 | F16: 6.605 | G16: 8.96 | K16: Oct | L16: 6 | M16: 16 | N16: 5.87 | O16: 7.46
A17: Nov | B17: 60 | C17: 6.5 | D17: 17 | E17: 10 | F17: 6.445 | G17: 7.77 | K17: Nov | L17: 6 | M17: 17 | N17: 6.23 | O17: 7.39
A18: Dec | B18: 60 | C18: 6.5 | D18: 22 | E18: 10 | F18: 6.625 | G18: 7.62 | K18: Dec | L18: 6 | M18: 22 | N18: 6.48 | O18: 7.45
E19: * ELV reduced to 8 mg/Nm3 on 3 December 2023 | K19: Annual | L19: =AVERAGE(L7:L18) -> 5.5 | M19: =MAX(M7:M18) -> 22 | N19: =AVERAGE(N7:N18) -> 5.698333333 | O19: =MAX(O7:O18) -> 8.64
J21: =+A6 -> 2023 | K21: mg/Nm3 | L21: Monthly 1/2 hourly mean | M21: Monthly 1/2 hourly maximum | N21: Monthly daily mean | O21: Monthly daily maximum
J22: A2 | K22: Jan | L22: 6 | M22: 11 | N22: 5.86 | O22: 7.36
K23: Feb | L23: 6 | M23: 13 | N23: 6.14 | O23: 8.17
K24: Mar | L24: 5 | M24: 11 | N24: 5.23 | O24: 7.51
K25: Apr | L25: 5 | M25: 14 | N25: 5.29 | O25: 7.37
K26: May | L26: 6 | M26: 15 | N26: 6.21 | O26: 7.83
K27: Jun | L27: 6 | M27: 32 | N27: 6.4 | O27: 7.98
K28: Jul | L28: 7 | M28: 12 | N28: 6.94 | O28: 8.39
K29: Aug | L29: 7 | M29: 16 | N29: 7.02 | O29: 8.25
K30: Sep | L30: 7 | M30: 15 | N30: 7.27 | O30: 8.68
K31: Oct | L31: 7 | M31: 39 | N31: 7.34 | O31: 8.96
K32: Nov | L32: 7 | M32: 17 | N32: 6.66 | O32: 7.77
K33: Dec | L33: 7 | M33: 21 | N33: 6.77 | O33: 7.62
K34: Annual | L34: =AVERAGE(L22:L33) -> 6.333333333 | M34: =MAX(M22:M33) -> 39 | N34: =AVERAGE(N22:N33) -> 6.4275 | O34: =MAX(O22:O33) -> 8.96
A48: Comments :

Sheet TOC
A1: =+'Cover Page'!$B$29 -> Annual Performance Report 2023 | E1: =+'Cover Page'!$B$33 -> Ferrybridge 2
A3: Monitoring of Total organic carbon emissions | D3: Whole Installation | G3: See Notes in Cell Q3 | J3: =+A3 -> Monitoring of Total organic carbon emissions | N3: Per Combustion Line | Q3: Notes:
Q4: User to add logic to complete Whole installation, Table A5:G18. From the data in Per Combustion Line, Table J6:O79, subject to No. of lines installed
A5: mg/Nm3 | B5: 1/2 Hourly Reference Periods | E5: Daily Reference Periods
A6: =+'Cover Page'!C39 -> 2023 | B6: 1/2 hourly TOC ELV | C6: Monthly 1/2 hourly mean | D6: Highest 1/2 hourly maximum | E6: Daily TOC ELV | F6: Monthly daily mean | G6: Highest daily maximum | J6: =+A6 -> 2023 | K6: mg/Nm3 | L6: Monthly 1/2 hourly mean | M6: Monthly 1/2 hourly maximum | N6: Monthly daily mean | O6: Monthly daily maximum
A7: Jan | B7: 20 | C7: =AVERAGE(L7, L22) -> 0.5 | D7: =MAX(M7,M22) -> 2 | E7: 10 | F7: =AVERAGE(N7,N22) -> 0.515 | G7: =MAX(O7,O22) -> 1.57 | J7: A1 | K7: Jan | L7: 1 | M7: 2 | N7: 0.65 | O7: 1.57
A8: Feb | B8: 20 | C8: =AVERAGE(L8, L23) -> 0.5 | D8: =MAX(M8,M23) -> 13 | E8: 10 | F8: =AVERAGE(N8,N23) -> 0.66 | G8: =MAX(O8,O23) -> 1.16 | K8: Feb | L8: 1 | M8: 1 | N8: 0.92 | O8: 1.16
A9: Mar | B9: 20 | C9: 0.5 | D9: 6 | E9: 10 | F9: 0.59 | G9: 0.99 | K9: Mar | L9: 1 | M9: 3 | N9: 0.79 | O9: 0.99 | Q9: Whole Installation table A5:G18:
A10: Apr | B10: 20 | C10: 0 | D10: 6 | E10: 10 | F10: 0.325 | G10: 0.62 | K10: Apr | L10: 0 | M10: 2 | N10: 0.23 | O10: 0.47 | Q10: Mean: for 1/2 hourly and daily periods calculate mean of values across all operational combustion lines for the month
A11: May | B11: 20 | C11: 0 | D11: 6 | E11: 10 | F11: 0.36 | G11: 0.78 | K11: May | L11: 0 | M11: 6 | N11: 0.24 | O11: 0.62
A12: Jun | B12: 20 | C12: 0 | D12: 3 | E12: 10 | F12: 0.345 | G12: 0.54 | K12: Jun | L12: 0 | M12: 2 | N12: 0.22 | O12: 0.29
A13: Jul | B13: 20 | C13: 0 | D13: 18 | E13: 10 | F13: 0.36 | G13: 0.8 | K13: Jul | L13: 0 | M13: 2 | N13: 0.24 | O13: 0.5 | Q13: Maximum: for 1/2 hourly and daily periods use the highest value across all operational combustion lines for the month
A14: Aug | B14: 20 | C14: 0 | D14: 3 | E14: 10 | F14: 0.385 | G14: 0.91 | K14: Aug | L14: 0 | M14: 2 | N14: 0.27 | O14: 0.91
A15: Sep | B15: 20 | C15: 0.5 | D15: 3 | E15: 10 | F15: 0.38 | G15: 0.84 | K15: Sep | L15: 0 | M15: 3 | N15: 0.24 | O15: 0.44
A16: Oct | B16: 20 | C16: 0 | D16: 18 | E16: 10 | F16: 0.385 | G16: 0.87 | K16: Oct | L16: 0 | M16: 3 | N16: 0.3 | O16: 0.87
A17: Nov | B17: 20 | C17: 0.5 | D17: 3 | E17: 10 | F17: 0.565 | G17: 0.95 | K17: Nov | L17: 1 | M17: 3 | N17: 0.73 | O17: 0.95
A18: Dec | B18: 20 | C18: 0.5 | D18: 10 | E18: 10 | F18: 0.515 | G18: 0.85 | K18: Dec | L18: 1 | M18: 10 | N18: 0.62 | O18: 0.85
K19: Annual | L19: =AVERAGE(L7:L18) -> 0.4166666667 | M19: =MAX(M7:M18) -> 10 | N19: =AVERAGE(N7:N18) -> 0.4541666667 | O19: =MAX(O7:O18) -> 1.57
J21: =+A6 -> 2023 | K21: mg/Nm3 | L21: Monthly 1/2 hourly mean | M21: Monthly 1/2 hourly maximum | N21: Monthly daily mean | O21: Monthly daily maximum
J22: A2 | K22: Jan | L22: 0 | M22: 1 | N22: 0.38 | O22: 0.48
K23: Feb | L23: 0 | M23: 13 | N23: 0.4 | O23: 0.64
K24: Mar | L24: 0 | M24: 6 | N24: 0.39 | O24: 0.54
K25: Apr | L25: 0 | M25: 6 | N25: 0.42 | O25: 0.62
K26: May | L26: 0 | M26: 6 | N26: 0.48 | O26: 0.78
K27: Jun | L27: 0 | M27: 3 | N27: 0.47 | O27: 0.54
K28: Jul | L28: 0 | M28: 18 | N28: 0.48 | O28: 0.8
K29: Aug | L29: 0 | M29: 3 | N29: 0.5 | O29: 0.56
K30: Sep | L30: 1 | M30: 2 | N30: 0.52 | O30: 0.84
K31: Oct | L31: 0 | M31: 18 | N31: 0.47 | O31: 0.86
K32: Nov | L32: 0 | M32: 3 | N32: 0.4 | O32: 0.55
K33: Dec | L33: 0 | M33: 4 | N33: 0.41 | O33: 0.67
K34: Annual | L34: =AVERAGE(L22:L33) -> 0.08333333333 | M34: =MAX(M22:M33) -> 18 | N34: =AVERAGE(N22:N33) -> 0.4433333333 | O34: =MAX(O22:O33) -> 0.86
A48: Comments :

Sheet Particulates
A1: =+'Cover Page'!$B$29 -> Annual Performance Report 2023 | E1: =+'Cover Page'!$B$33 -> Ferrybridge 2
A3: Monitoring of Particulate matter emissions | D3: Whole Installation | G3: See Notes in Cell Q3 | J3: =+A3 -> Monitoring of Particulate matter emissions | N3: Per Combustion Line | Q3: Notes:
Q4: User to add logic to complete Whole installation, Table A5:G18. From the data in Per Combustion Line, Table J6:O79, subject to No. of lines installed
A5: mg/Nm3 | B5: 1/2 Hourly Reference Periods | E5: Daily Reference Periods
A6: =+'Cover Page'!C39 -> 2023 | B6: 1/2 hourly PM ELV | C6: Monthly 1/2 hourly mean | D6: Highest 1/2 hourly maximum | E6: Daily PM ELV* | F6: Monthly daily mean | G6: Highest daily maximum | J6: =+A6 -> 2023 | K6: mg/Nm3 | L6: Monthly 1/2 hourly mean | M6: Monthly 1/2 hourly maximum | N6: Monthly daily mean | O6: Monthly daily maximum
A7: Jan | B7: 30 | C7: =AVERAGE(L7, L22) -> 1.5 | D7: =MAX(M7,M22) -> 7 | E7: 10 | F7: =AVERAGE(N7,N22) -> 1.44 | G7: =MAX(O7,O22) -> 4.8 | J7: A1 | K7: Jan | L7: 1 | M7: 3 | N7: 1.03 | O7: 2.07
A8: Feb | B8: 30 | C8: =AVERAGE(L8, L23) -> 2.5 | D8: =MAX(M8,M23) -> 7 | E8: 10 | F8: =AVERAGE(N8,N23) -> 2.605 | G8: =MAX(O8,O23) -> 5.45 | K8: Feb | L8: 2 | M8: 6 | N8: 2.4 | O8: 3.74
A9: Mar | B9: 30 | C9: 2.5 | D9: 39 | E9: 10 | F9: 2.33 | G9: 7.46 | K9: Mar | L9: 2 | M9: 5 | N9: 2.15 | O9: 2.79 | Q9: Whole Installation table A5:G18:
A10: Apr | B10: 30 | C10: 2 | D10: 10 | E10: 10 | F10: 1.97 | G10: 3.36 | K10: Apr | L10: 2 | M10: 7 | N10: 1.92 | O10: 3.36 | Q10: Mean: for 1/2 hourly and daily periods calculate mean of values across all operational combustion lines for the month
A11: May | B11: 30 | C11: 0.5 | D11: 3 | E11: 10 | F11: 0.595 | G11: 1.13 | K11: May | L11: 1 | M11: 3 | N11: 0.87 | O11: 1.13
A12: Jun | B12: 30 | C12: 0.5 | D12: 48 | E12: 10 | F12: 0.63 | G12: 1.39 | K12: Jun | L12: 1 | M12: 2 | N12: 0.84 | O12: 1.13
A13: Jul | B13: 30 | C13: 1 | D13: 3 | E13: 10 | F13: 0.995 | G13: 2.52 | K13: Jul | L13: 1 | M13: 2 | N13: 1.09 | O13: 1.26 | Q13: Maximum: for 1/2 hourly and daily periods use the highest value across all operational combustion lines for the month
A14: Aug | B14: 30 | C14: 1.5 | D14: 5 | E14: 10 | F14: 1.805 | G14: 3.55 | K14: Aug | L14: 1 | M14: 4 | N14: 1.12 | O14: 2.07
A15: Sep | B15: 30 | C15: 1.5 | D15: 41 | E15: 10 | F15: 1.69 | G15: 4.49 | K15: Sep | L15: 1 | M15: 41 | N15: 1.23 | O15: 4.49
A16: Oct | B16: 30 | C16: 2 | D16: 6 | E16: 10 | F16: 1.945 | G16: 3.65 | K16: Oct | L16: 2 | M16: 6 | N16: 1.83 | O16: 3.65
A17: Nov | B17: 30 | C17: 2 | D17: 10 | E17: 10 | F17: 1.78 | G17: 2.98 | K17: Nov | L17: 2 | M17: 10 | N17: 1.63 | O17: 2.19
A18: Dec | B18: 30 | C18: 2 | D18: 15 | E18: 10 | F18: 1.995 | G18: 3.92 | K18: Dec | L18: 2 | M18: 15 | N18: 2.12 | O18: 3.92
E19: * ELV reduced to 5 mg/Nm3 on 3 December 2023 | K19: Annual | L19: =AVERAGE(L7:L18) -> 1.5 | M19: =MAX(M7:M18) -> 41 | N19: =AVERAGE(N7:N18) -> 1.519166667 | O19: =MAX(O7:O18) -> 4.49
J21: =+A6 -> 2023 | K21: mg/Nm3 | L21: Monthly 1/2 hourly mean | M21: Monthly 1/2 hourly maximum | N21: Monthly daily mean | O21: Monthly daily maximum
J22: A2 | K22: Jan | L22: 2 | M22: 7 | N22: 1.85 | O22: 4.8
K23: Feb | L23: 3 | M23: 7 | N23: 2.81 | O23: 5.45
K24: Mar | L24: 3 | M24: 39 | N24: 2.51 | O24: 7.46
K25: Apr | L25: 2 | M25: 10 | N25: 2.02 | O25: 3.15
K26: May | L26: 0 | M26: 1 | N26: 0.32 | O26: 0.63
K27: Jun | L27: 0 | M27: 48 | N27: 0.42 | O27: 1.39
K28: Jul | L28: 1 | M28: 3 | N28: 0.9 | O28: 2.52
K29: Aug | L29: 2 | M29: 5 | N29: 2.49 | O29: 3.55
K30: Sep | L30: 2 | M30: 30 | N30: 2.15 | O30: 4
K31: Oct | L31: 2 | M31: 4 | N31: 2.06 | O31: 2.56
K32: Nov | L32: 2 | M32: 7 | N32: 1.93 | O32: 2.98
K33: Dec | L33: 2 | M33: 4 | N33: 1.87 | O33: 2.41
K34: Annual | L34: =AVERAGE(L22:L33) -> 1.75 | M34: =MAX(M22:M33) -> 48 | N34: =AVERAGE(N22:N33) -> 1.7775 | O34: =MAX(O22:O33) -> 7.46
A48: Comments :

Sheet NH3
A1: =+'Cover Page'!$B$29 -> Annual Performance Report 2023 | E1: =+'Cover Page'!$B$33 -> Ferrybridge 2
A3: Monitoring of Ammnonia emissions | D3: Whole Installation | G3: See Notes in Cell Q3 | J3: =+A3 -> Monitoring of Ammnonia emissions | N3: Per Combustion Line | Q3: Notes:
Q4: User to add logic to complete Whole installation, Table A5:G18. From the data in Per Combustion Line, Table J6:O79, subject to No. of lines installed
A5: mg/Nm3 | B5: 1/2 Hourly Reference Periods | E5: Daily Reference Periods
A6: =+'Cover Page'!C39 -> 2023 | B6: 1/2 hourly NH3 ELV | C6: Monthly 1/2 hourly mean | D6: Highest 1/2 hourly maximum | E6: Daily NH3 ELV* | F6: Monthly daily mean | G6: Highest daily maximum | J6: =+A6 -> 2023 | K6: mg/Nm3 | L6: Monthly 1/2 hourly mean | M6: Monthly 1/2 hourly maximum | N6: Monthly daily mean | O6: Monthly daily maximum
A7: Jan | B7: 30 | C7: =AVERAGE(L7, L22) -> 0 | D7: =MAX(M7,M22) -> 0 | E7: None | F7: =AVERAGE(N7,N22) -> 0.095 | G7: =MAX(O7,O22) -> 0.3 | J7: A1 | K7: Jan | L7: 0 | M7: 0 | N7: 0.15 | O7: 0.3
A8: Feb | B8: =+B7 -> 30 | C8: =AVERAGE(L8, L23) -> 0 | D8: =MAX(M8,M23) -> 1 | E8: None | F8: =AVERAGE(N8,N23) -> 0.035 | G8: =MAX(O8,O23) -> 0.19 | K8: Feb | L8: 0 | M8: 1 | N8: 0.01 | O8: 0.19
A9: Mar | B9: =+B8 -> 30 | C9: 0 | D9: 0 | E9: None | F9: 0.005 | G9: 0.15 | K9: Mar | L9: 0 | M9: 0 | N9: 0 | O9: 0.06 | Q9: Whole Installation table A5:G18:
A10: Apr | B10: 30 | C10: 0 | D10: 1 | E10: None | F10: 0.005 | G10: 0.07 | K10: Apr | L10: 0 | M10: 0 | N10: 0 | O10: 0.02 | Q10: Mean: for 1/2 hourly and daily periods calculate mean of values across all operational combustion lines for the month
A11: May | B11: 30 | C11: 0 | D11: 0 | E11: None | F11: 0.005 | G11: 0.07 | K11: May | L11: 0 | M11: 0 | N11: 0 | O11: 0.03
A12: Jun | B12: 30 | C12: 0 | D12: 0 | E12: None | F12: 0 | G12: 0.03 | K12: Jun | L12: 0 | M12: 0 | N12: 0 | O12: 0.03
A13: Jul | B13: 30 | C13: 0 | D13: 1 | E13: None | F13: 0 | G13: 0.02 | K13: Jul | L13: 0 | M13: 0 | N13: 0 | O13: 0.02 | Q13: Maximum: for 1/2 hourly and daily periods use the highest value across all operational combustion lines for the month
A14: Aug | B14: 30 | C14: 0 | D14: 1 | E14: None | F14: 0 | G14: 0.06 | K14: Aug | L14: 0 | M14: 0 | N14: 0 | O14: 0.06
A15: Sep | B15: 30 | C15: 0 | D15: 1 | E15: None | F15: 0.015 | G15: 0.42 | K15: Sep | L15: 0 | M15: 1 | N15: 0.02 | O15: 0.42
A16: Oct | B16: 30 | C16: 0 | D16: 1 | E16: None | F16: 0.005 | G16: 0.07 | K16: Oct | L16: 0 | M16: 0 | N16: 0.01 | O16: 0.07
A17: Nov | B17: 30 | C17: 0 | D17: 1 | E17: None | F17: 0.01 | G17: 0.05 | K17: Nov | L17: 0 | M17: 0 | N17: 0.01 | O17: 0.05
A18: Dec | B18: 30 | C18: 0 | D18: 1 | E18: 15 | F18: 0.045 | G18: 0.47 | K18: Dec | L18: 0 | M18: 0 | N18: 0.07 | O18: 0.47
E19: * ELV came into force on 3 December 2023 | K19: Annual | L19: =AVERAGE(L7:L18) -> 0 | M19: =MAX(M7:M18) -> 1 | N19: =AVERAGE(N7:N18) -> 0.0225 | O19: =MAX(O7:O18) -> 0.47
J21: =+A6 -> 2023 | K21: mg/Nm3 | L21: Monthly 1/2 hourly mean | M21: Monthly 1/2 hourly maximum | N21: Monthly daily mean | O21: Monthly daily maximum
J22: A2 | K22: Jan | L22: 0 | M22: 0 | N22: 0.04 | O22: 0.23
K23: Feb | L23: 0 | M23: 1 | N23: 0.06 | O23: 0.17
K24: Mar | L24: 0 | M24: 0 | N24: 0.01 | O24: 0.15
K25: Apr | L25: 0 | M25: 1 | N25: 0.01 | O25: 0.07
K26: May | L26: 0 | M26: 0 | N26: 0.01 | O26: 0.07
K27: Jun | L27: 0 | M27: 0 | N27: 0 | O27: 0.01
K28: Jul | L28: 0 | M28: 1 | N28: 0 | O28: 0.02
K29: Aug | L29: 0 | M29: 1 | N29: 0 | O29: 0.04
K30: Sep | L30: 0 | M30: 1 | N30: 0.01 | O30: 0.06
K31: Oct | L31: 0 | M31: 1 | N31: 0 | O31: 0.02
K32: Nov | L32: 0 | M32: 1 | N32: 0.01 | O32: 0.03
K33: Dec | L33: 0 | M33: 1 | N33: 0.02 | O33: 0.19
K34: Annual | L34: =AVERAGE(L22:L33) -> 0 | M34: =MAX(M22:M33) -> 1 | N34: =AVERAGE(N22:N33) -> 0.01416666667 | O34: =MAX(O22:O33) -> 0.23
A48: Comments :
A49: An indicated ELV value of zero in the table above means that no ammonia limit is/was set in the permit.

Sheet CO 95% 10 min
A1: =+'Cover Page'!$B$29 -> Annual Performance Report 2023 | E1: =+'Cover Page'!$B$33 -> Ferrybridge 2
A3: Monitoring of Carbon Monoxide (10-minute avg) | E3: Whole Installation | H3: See Notes in Cell S3 | J3: =+A3 -> Monitoring of Carbon Monoxide (10-minute avg) | O3: Per Combustion Line | Q3: Notes: | S3: Notes:
A5: Please complete this tab for your plant if you have 10-minute average CO ELVs; otherwise, leave it blank and complete the CO 0.5 hourly tab
S7: User to add logic to complete Whole installation, Table A5:H18. From the data in Per Combustion Line, Table K6:Q79, subject to No. of lines installed
A8: mg/Nm3 | B8: 10-minute Reference Periods | F8: Daily Reference Periods
A9: =+'Cover Page'!C39 -> 2023 | B9: 95%ile 10-min avg CO ELV | C9: 95%ile 10-min avg maximum | D9: Monthly CO 10-min avg mean | E9: 10-min avg maximum | F9: Daily CO ELV | G9: Monthly daily mean | H9: Highest daily maximum | K9: =+A9 -> 2023 | L9: mg/Nm3 | M9: 95%ile 10-min avg maximum | N9: Monthly CO 10-min avg mean | O9: 10-min avg maximum | P9: Monthly daily mean | Q9: Monthly daily maximum
A10: Jan | B10: 150 | C10: =MAX(M10,M25) -> 8 | D10: =AVERAGE(N10,N25) -> 3 | E10: =MAX(O10,O25) -> 159 | F10: 50 | G10: =AVERAGE(P10,P25) -> 2.765 | H10: =MAX(Q10,Q25) -> 5.14 | K10: A1 | L10: Jan | M10: 8 | N10: 3 | O10: 159 | P10: 2.89 | Q10: 5.14
A11: Feb | B11: =+B10 -> 150 | C11: =MAX(M11,M26) -> 8 | D11: =AVERAGE(N11,N26) -> 3 | E11: =MAX(O11,O26) -> 4483 | F11: =+F10 -> 50 | G11: =AVERAGE(P11,P26) -> 3.025 | H11: =MAX(Q11,Q26) -> 35.48 | L11: Feb | M11: 6 | N11: 1 | O11: 162 | P11: 0.87 | Q11: 2.49
A12: Mar | B12: =+B11 -> 150 | C12: 20 | D12: 2 | E12: 2180 | F12: =+F11 -> 50 | G12: 2.5 | H12: 18.29 | L12: Mar | M12: 6 | N12: 1 | O12: 241 | P12: 1.45 | Q12: 7.49 | S12: Whole Installation table A5:H18:
A13: Apr | B13: 150 | C13: 7 | D13: 2 | E13: 1859 | F13: 50 | G13: 1.945 | H13: 14.77 | L13: Apr | M13: 5 | N13: 1 | O13: 203 | P13: 1.03 | Q13: 2.2 | S13: Mean: for 10-min and daily periods use average of all operational combustion lines.
A14: May | B14: 150 | C14: 8 | D14: 2 | E14: 2170 | F14: 50 | G14: 1.74 | H14: 17.2 | L14: May | M14: 6 | N14: 1 | O14: 333 | P14: 0.97 | Q14: 3.23
A15: Jun | B15: 150 | C15: 8 | D15: 1.5 | E15: 247 | F15: 50 | G15: 1.97 | H15: 5.73 | L15: Jun | M15: 8 | N15: 1 | O15: 225 | P15: 1.5 | Q15: 2.61
A16: Jul | B16: 150 | C16: 14 | D16: 2.5 | E16: 6906 | F16: 50 | G16: 2.835 | H16: 42.93 | L16: Jul | M16: 13 | N16: 1 | O16: 162 | P16: 1.34 | Q16: 3.79 | S16: Maximum: for 10-min and daily periods use the highest of all operational combustion lines in any month.
A17: Aug | B17: 150 | C17: 9 | D17: 2 | E17: 243 | F17: 50 | G17: 1.955 | H17: 4.31 | L17: Aug | M17: 6 | N17: 1 | O17: 211 | P17: 1.34 | Q17: 3.74
A18: Sep | B18: 150 | C18: 28 | D18: 2.5 | E18: 223 | F18: 50 | G18: 2.435 | H18: 8.24 | L18: Sep | M18: 25 | N18: 2 | O18: 112 | P18: 1.73 | Q18: 7.12
A19: Oct | B19: 150 | C19: 30 | D19: 3.5 | E19: 4113 | F19: 50 | G19: 3.245 | H19: 26.81 | L19: Oct | M19: 15 | N19: 2 | O19: 443 | P19: 1.81 | Q19: 6.24
A20: Nov | B20: 150 | C20: 17 | D20: 2.5 | E20: 465 | F20: 50 | G20: 2.925 | H20: 17.44 | L20: Nov | M20: 17 | N20: 2 | O20: 393 | P20: 2.09 | Q20: 5.23
A21: Dec | B21: 150 | C21: 19 | D21: 3 | E21: 1334 | F21: 50 | G21: 3.12 | H21: 13.18 | L21: Dec | M21: 14 | N21: 3 | O21: 903 | P21: 2.74 | Q21: 13.18
L22: Annual | M22: =MAX(M10:M21) -> 25 | N22: =AVERAGE(N10:N21) -> 1.583333333 | O22: =MAX(O10:O21) -> 903 | P22: =AVERAGE(P10:P21) -> 1.646666667 | Q22: =MAX(Q10:Q21) -> 13.18
K24: =+A9 -> 2023 | L24: mg/Nm3 | M24: 95%ile 10-min avg maximum | N24: Monthly CO 10-min avg mean | O24: 10-min avg maximum | P24: Monthly daily mean | Q24: Monthly daily maximum
K25: A2 | L25: Jan | M25: 7 | N25: 3 | O25: 131 | P25: 2.64 | Q25: 5.09
L26: Feb | M26: 8 | N26: 5 | O26: 4483 | P26: 5.18 | Q26: 35.48
L27: Mar | M27: 20 | N27: 3 | O27: 2180 | P27: 3.55 | Q27: 18.29
L28: Apr | M28: 7 | N28: 3 | O28: 1859 | P28: 2.86 | Q28: 14.77
L29: May | M29: 8 | N29: 3 | O29: 2170 | P29: 2.51 | Q29: 17.2
L30: Jun | M30: 6 | N30: 2 | O30: 247 | P30: 2.44 | Q30: 5.73
L31: Jul | M31: 14 | N31: 4 | O31: 6906 | P31: 4.33 | Q31: 42.93
L32: Aug | M32: 9 | N32: 3 | O32: 243 | P32: 2.57 | Q32: 4.31
L33: Sep | M33: 28 | N33: 3 | O33: 223 | P33: 3.14 | Q33: 8.24
L34: Oct | M34: 30 | N34: 5 | O34: 4113 | P34: 4.68 | Q34: 26.81
L35: Nov | M35: 14 | N35: 3 | O35: 465 | P35: 3.76 | Q35: 17.44
L36: Dec | M36: 19 | N36: 3 | O36: 1334 | P36: 3.5 | Q36: 12.61
L37: Annual | M37: =MAX(M25:M36) -> 30 | N37: =AVERAGE(N25:N36) -> 3.333333333 | O37: =MAX(O25:O36) -> 6906 | P37: =AVERAGE(P25:P36) -> 3.43 | Q37: =MAX(Q25:Q36) -> 42.93
A51: Comments :
A52: Environment Agency explanatory note: The 10-minute average ELV is based on the “95th percentile”. In this case this means that 95% of the 10 minute averages in the relevant 24-hour period (i.e. 137) must be below 150 mg/Nm3, and 5% (i.e. 7) are allowed to be any value above 150 mg/Nm3. Whilst we expect operators to minimise CO emissions at all times, it is perfectly acceptable for the value of the maximum 10-minute average to be above 150 mg/Nm3, provided the 95th percentile ELV has been met for that period.

Sheet CO 0.5 hourly
A1: =+'Cover Page'!$B$29 -> Annual Performance Report 2023 | E1: =+'Cover Page'!$B$33 -> Ferrybridge 2
A3: Monitoring of Carbon Monoxide (half hourly) | D3: Whole Installation | G3: See Notes in Cell Q3 | J3: =+A3 -> Monitoring of Carbon Monoxide (half hourly) | N3: Per Combustion Line | Q3: Notes:
A5: Please complete this tab for your plant if you have 1/2 hourly CO ELVs; otherwise, leave it blank and complete the CO 95% 10 min tab
Q7: User to add logic to complete Whole installation, Table A5:G18. From the data in Per Combustion Line, Table J6:O79, subject to No. of lines installed
A8: mg/Nm3 | B8: 1/2 Hourly Reference Periods | E8: Daily Reference Periods
A9: =+'Cover Page'!C39 -> 2023 | B9: 1/2 hourly CO ELV | C9: Monthly 1/2 hourly mean | D9: Highest 1/2 hourly maximum | E9: Daily CO ELV | F9: Monthly daily mean | G9: Highest daily maximum | J9: =+A9 -> 2023 | K9: mg/Nm3 | L9: Monthly 1/2 hourly mean | M9: Monthly 1/2 hourly maximum | N9: Monthly daily mean | O9: Monthly daily maximum
A10: Jan | B10: 100 | E10: 50 | J10: A1 | K10: Jan
A11: Feb | B11: =+B10 -> 100 | E11: =+E10 -> 50 | K11: Feb
A12: Mar | B12: =+B11 -> 100 | E12: =+E11 -> 50 | K12: Mar | Q12: Whole Installation table A5:G18:
A13: Apr | B13: 100 | E13: 50 | K13: Apr | Q13: Mean: for 1/2 hourly and daily periods calculate mean of values across all operational combustion lines for the month
A14: May | B14: 100 | E14: 50 | K14: May
A15: Jun | B15: 100 | E15: 50 | K15: Jun
A16: Jul | B16: 100 | E16: 50 | K16: Jul | Q16: Maximum: for 1/2 hourly and daily periods use the highest value across all operational combustion lines for the month
A17: Aug | B17: 100 | E17: 50 | K17: Aug
A18: Sep | B18: 100 | E18: 50 | K18: Sep
A19: Oct | B19: 100 | E19: 50 | K19: Oct
A20: Nov | B20: 100 | E20: 50 | K20: Nov
A21: Dec | B21: 100 | E21: 50 | K21: Dec
K22: Annual | L22: =AVERAGE(L10:L21) ->  | M22: =MAX(M10:M21) -> 0 | N22: =AVERAGE(N10:N21) ->  | O22: =MAX(O10:O21) -> 0
J24: =+A9 -> 2023 | K24: mg/Nm3 | L24: Monthly 1/2 hourly mean | M24: Monthly 1/2 hourly maximum | N24: Monthly daily mean | O24: Monthly daily maximum
J25: A2 | K25: Jan
K26: Feb
K27: Mar
K28: Apr
K29: May
K30: Jun
K31: Jul
K32: Aug
K33: Sep
K34: Oct
K35: Nov
K36: Dec
K37: Annual | L37: =AVERAGE(L25:L36) ->  | M37: =MAX(M25:M36) -> 0 | N37: =AVERAGE(N25:N36) ->  | O37: =MAX(O25:O36) -> 0
J39: =+A9 -> 2023 | K39: mg/Nm3 | L39: Monthly 1/2 hourly mean | M39: Monthly 1/2 hourly maximum | N39: Monthly daily mean | O39: Monthly daily maximum
J40: A3 | K40: Jan
K41: Feb
K42: Mar
K43: Apr
K44: May
K45: Jun
K46: Jul
K47: Aug
K48: Sep
K49: Oct
K50: Nov
A51: Comments : | K51: Dec
K52: Annual | L52: =AVERAGE(L40:L51) ->  | M52: =MAX(M40:M51) -> 0 | N52: =AVERAGE(N40:N51) ->  | O52: =MAX(O40:O51) -> 0
J54: =+A9 -> 2023 | K54: mg/Nm3 | L54: Monthly 1/2 hourly mean | M54: Monthly 1/2 hourly maximum | N54: Monthly daily mean | O54: Monthly daily maximum
J55: A4 | K55: Jan
K56: Feb
K57: Mar
K58: Apr
K59: May
K60: Jun
K61: Jul
K62: Aug
K63: Sep
K64: Oct
K65: Nov
K66: Dec
K67: Annual | L67: =AVERAGE(L55:L66) ->  | M67: =MAX(M55:M66) -> 0 | N67: =AVERAGE(N55:N66) ->  | O67: =MAX(O55:O66) -> 0
J69: =+A9 -> 2023 | K69: mg/Nm3 | L69: Monthly 1/2 hourly mean | M69: Monthly 1/2 hourly maximum | N69: Monthly daily mean | O69: Monthly daily maximum
J70: A5 | K70: Jan
K71: Feb
K72: Mar
K73: Apr
K74: May
K75: Jun
K76: Jul
K77: Aug
K78: Sep
K79: Oct
K80: Nov
K81: Dec
K82: Annual | L82: =AVERAGE(L70:L81) ->  | M82: =MAX(M70:M81) -> 0 | N82: =AVERAGE(N70:N81) ->  | O82: =MAX(O70:O81) -> 0
